Workbook

Sheet Eingabe
B2: =Translation!A3 -> Jahresarbeitszahl
B3: Beispielprojekt | D3: IMT v1.09
B5: =Translation!A5 -> Eingabewerte | I5: =Translation!A29 -> Rechenwerte Heizungswärmepumpe
B7: =Translation!A6 -> Wärmequelle | I7: =B198 -> Temperaturdifferenz Prüfstand | J7: =IF(ISERROR(D198),Translation!A49,D198) -> 5 K
B9: =Translation!A7 -> Anzahl | Typ Wärmepumpe | I9: =B200 -> Leistungszahl A-7/W35 | J9: =IF(ISERROR(D200),Translation!A49,D200) -> 2,83
B11: =Translation!A8 -> Betriebsweise | Bivalenzpunkt | I11: =B202 -> Leistungszahl A2/W35 | J11: =IF(ISERROR(D202),Translation!A49,D202) -> 3,88
B13: =IF(OR(Berechnung!H6=Berechnung!H12,Berechnung!H6=Berechnung!H13),Translation!A9&" "&Translation!A10,Translation!A9) -> Vorlauftemperatur | I13: =B204 -> Leistungszahl A10/W35 | J13: =IF(ISERROR(D204),Translation!A49,D204) -> 4,83
B15: =Translation!A11 -> Temperaturspreizung Heizung | I15: =B206 -> Korrekturfaktor F1 | J15: =IF(ISERROR(D206),Translation!A49,D206) -> 0,085
B17: =IF(Berechnung!E6=Berechnung!E9,Translation!A12,IF(Berechnung!E6=Berechnung!E10,Translation!A13,Translation!A14)) -> Heizgrenztemperatur | I17: =B208 -> Korrekturfaktor F2 | J17: =IF(ISERROR(D208),Translation!A49,D208) -> 0.854
B19: =IF(Berechnung!E6=Berechnung!E9,Translation!A15,IF(Berechnung!E6=Berechnung!E10,Translation!A16,IF(Berechnung!E6=Berechnung!E11,Translation!A17,Translation!A18))) -> Norm-Außentemperatur Standort | I19: =B210 -> Korrekturfaktor F3 | J19: =IF(ISERROR(D210),Translation!A49,D210) -> 0.134
B21: =Translation!A19 -> Warmwasserbereitung | I21: =Translation!A47&" "&B212 -> Heizung Korrekturfaktor (Verflüssiger) | J21: =IF(ISERROR(D212),Translation!A49,D212) -> 1,021
B23: =Translation!A20 -> Warmwasser-Wärmepumpe | I23: =Translation!A26&" "&B228 -> WWB Korrekturfaktor (Verdampfer) | J23: =IF(ISERROR(D228),Translation!A49,D228) -> ---
B25: =Translation!A21 -> Anteil Warmwasserbereitung | I25: =Translation!A26&" "&B230 -> WWB Korrekturfaktor (Verflüssiger) | J25: =IF(ISERROR(D230),Translation!A49,D230) -> ---
B28: =Translation!A22 -> Ergebnisse | I28: =Translation!A48 -> Rechenwerte Warmwasser-Wärmepumpe
B30: =Translation!A23 -> Deckungsanteil Wärmepumpe | D30: =IF(ISERROR(Berechnung!J67),Translation!A49,Berechnung!J67) -> 98 % | I30: =B220 -> Leistungszahl WW-Wärmepumpe | J30: =IF(ISERROR(D220),Translation!A49,D220) -> 3,42
B32: =Translation!A24 -> Jahresarbeitszahl Heizung | D32: =IF(ISERROR(Berechnung!J68),Translation!A49,Berechnung!J68) -> 4,02 | I32: =B222 -> WW-Temperatur Prüfstand | J32: =IF(Berechnung!Q6=Berechnung!Q10,D222,"---") -> 55 °C
B34: =Translation!A25 -> Jahresarbeitszahl WWB | D34: =IF(ISERROR(Berechnung!J69),Translation!A49,Berechnung!J69) -> 3,23 | I34: =B224 -> Korrekturfaktor (Prüfstand) | J34: =IF(ISERROR(D224),Translation!A49,D224) -> 1,05
B36: =Translation!A27 -> Gesamt-Jahresarbeitszahl | D36: =IF(ISERROR(Berechnung!J70),Translation!A49,Berechnung!J70) -> 3,82 | I36: =B226 -> Korrekturfaktor (Wärmequelle WWB) | J36: =IF(ISERROR(D226),Translation!A49,D226) -> 0.9
B38: =IF(Translation!A28="","",Translation!C28) -> 
B196: =Translation!A30 -> Rechenwerte Heizung
B198: =Translation!A31 -> Temperaturdifferenz Prüfstand | D198: =Berechnung!J71 -> 5 K
B200: =Berechnung!J72 -> Leistungszahl A-7/W35 | D200: =Berechnung!J73 -> 2,83
B202: =Berechnung!J87 -> Leistungszahl A2/W35 | D202: =Berechnung!J89 -> 3,88
B204: =Berechnung!J88 -> Leistungszahl A10/W35 | D204: =Berechnung!J90 -> 4,83
B206: =Berechnung!J74 -> Korrekturfaktor F1 | D206: =Berechnung!J75 -> 0,085
B208: =Berechnung!J76 -> Korrekturfaktor F2 | D208: =Berechnung!J77 -> 0.854
B210: =Berechnung!J78 -> Korrekturfaktor F3 | D210: =Berechnung!J79 -> 0.134
B212: =Translation!A40 -> Korrekturfaktor (Verflüssiger) | D212: =Berechnung!J80 -> 1,021
B214: =Translation!A41 -> Jahresarbeitszahl (Monovalent) | D214: =Berechnung!J81 -> 4,3
B218: =Translation!A42 -> Rechenwerte Warmwasserbereitung
B220: =Translation!A43 -> Leistungszahl WW-Wärmepumpe | D220: =Berechnung!J82 -> 3,42
B222: =Translation!A44 -> WW-Temperatur Prüfstand | D222: =IF(Berechnung!Q6=Berechnung!Q10,Berechnung!S44&" °C","---") -> 55 °C
B224: =Translation!A45 -> Korrekturfaktor (Prüfstand) | D224: =Berechnung!J83 -> 1,05
B226: =Translation!A46 -> Korrekturfaktor (Wärmequelle WWB) | D226: =Berechnung!J84 -> 0.9
B228: =Translation!A39 -> Korrekturfaktor (Verdampfer) | D228: =Berechnung!J85 -> ---
B230: =Translation!A40 -> Korrekturfaktor (Verflüssiger) | D230: =Berechnung!J86 -> ---
B232: =Translation!A28 -> Berechnung nach VDI 4650 | Teil 1 (März 2009). Irrtum und Technische Änderungen vorbehalten.

Sheet Manuelle Eingabe (hidden)
B2: =Translation!A78 -> Manuelle Eingabe
C4: =Translation!A79 -> Luft-Wasser-Wärmepumpe
C6: =Translation!A31&" [K]" -> Temperaturdifferenz Prüfstand [K] | D6: 5
C8: =Translation!A32&" A-7/W35" -> Leistungszahl A-7/W35 | D8: 2.7
C10: =Translation!A32&" A2/W35" -> Leistungszahl A2/W35 | D10: 3.5
C12: =Translation!A32&" A10/W35" -> Leistungszahl A10/W35 | D12: 4
C14: =Translation!A80 -> Sole-Wasser-Wärmepumpe
C16: =Translation!A31&" [K]" -> Temperaturdifferenz Prüfstand [K] | D16: 5
C18: =Translation!A32&" B0/W35" -> Leistungszahl B0/W35 | D18: 4.5
C20: =Translation!A34&" B0/W35 [KW]" -> Leistungsaufnahme Verdichter B0/W35 [KW] | D20: 4
C22: =Translation!A33&" B10/W35 [KW]" -> Heizleistung B10/W35 [KW] | D22: 20
C24: =Translation!A81 -> Wasser-Wasser-Wärmepumpe
C26: =Translation!A31&" [K]" -> Temperaturdifferenz Prüfstand [K] | D26: 5
C28: =Translation!A32&" W10/W35" -> Leistungszahl W10/W35 | D28: 5
C30: =Translation!A34&" W10/W35 [KW]" -> Leistungsaufnahme Verdichter W10/W35 [KW] | D30: 3
C32: =Translation!A33&" W10/W35 [KW]" -> Heizleistung W10/W35 [KW] | D32: 15
C34: =Translation!A20 -> Warmwasser-Wärmepumpe
C36: =Translation!A82 -> Leistungszahl Aufheizung von 15°C auf 50°C | D36: 5
C38: =Translation!A44 -> WW-Temperatur Prüfstand | D38: 55 | J38: Kellerluft-WP
J39: Abluft-WP
C40: =Translation!A83 -> Wärmepumpen-Typ | D40: Kellerluft-WP

Sheet Berechnung (hidden)
E1: Comoboxen Wärmepumpe
F2: Anzahl WP | N2: Wärmequellentemperatur | P2: Leistung | T2: Zahlenwert | U2: Zahlenwert | V2: Deckungsanteil | W2: Zahlenwert | X2: Zahlenwert | Y2: Zahlenwert | Z2: Sprache
E3: Wärmequelle | G3: WP-Typ | H3: Betriebsweise | I3: Bivalenzpunkt | J3: Vorlauftemperatur | K3: Spreizung | L3: Heizgrenztemperatur | M3: Außentemperatur | N3: Sole | O3: Wasser | P3: Quellenpumpe | Q3: Warmwasserbereitung | R3: Warmwasser-WP | S3: Anteil WWB | T3: Temp. Quelle | U3: Temp. Quelle | V3: Alpha-WP | W3: Deckung | X3: Vorlauftemperatur | Y3: Anzahl WP
T4: Sole-Wasser | U4: Wasser-Wasser | W4: WWB
T5: =IF(E6=E10,VLOOKUP(N6,N8:T25,7,FALSE),IF(E6=E11,VLOOKUP(N6,O8:U25,7,FALSE)-3,VLOOKUP(N6,O8:U25,7,FALSE))) -> 
E6: Außenluft | F6: 1 x | G6: WPL 15 ACS | H6: Monoenergetisch | I6: -5 °C | J6: 35 °C | K6: 7 K | L6: 12 °C | M6: -10 °C | N6: Standard Sonde (2 °C) | P6: Standard VDI 4650 | Q6: Warmwasser-Wärmepumpe | R6: WWK 220 electronic | S6: 18 | V6: =IF(H6=H10,VLOOKUP(I6,I9:V24,14,FALSE),1) -> 0.98 | W6: =IF(S6=S9,0.18,IF(OR(Q6=Q11,Q6=Q12),0,S6/100)) -> 0.18 | X6: =IF(OR(H6=H12,H6=H13),Vorlauftemperatur!R26,VLOOKUP(J6,J8:X26,15,FALSE)) -> 35 | Y6: =VLOOKUP(F6,F8:Y24,20,FALSE) -> 1 | Z6: 1 | AA6: =VLOOKUP(Z6,Z8:AA26,2,FALSE) -> | Deutsch
E9: =Translation!A50 -> Außenluft | F9: 1 x | H9: =Translation!A58 -> Monovalent | I9: -10 °C | J9: 30 °C | K9: 3 K | L9: 10 °C | M9: -10 °C | N9: =Translation!A63 -> Standard Sonde (2 °C) | O9: =Translation!A65 -> Standardwert (10 °C) | P9: =Translation!A67 -> Standard VDI 4650 | Q9: =Translation!A69 -> Mit Heizungs-Wärmepumpe | R9: =Leistungsdaten!A256 -> Warmwasser-WP (Manuell) | S9: =Translation!A74 -> Standardwert (18 %) | T9: 2 | U9: 10 | V9: 1 | X9: 30 | Y9: 1 | Z9: 1 | AA9: | Deutsch
E10: =Translation!A51 -> Erdreich | F10: 2 x | H10: =Translation!A59 -> Monoenergetisch | I10: -9 °C | J10: 35 °C | K10: 4 K | L10: 12 °C | M10: -11 °C | N10: =Translation!A64 -> Standard Kollektor (0 °C) | O10: 5 °C | P10: =Translation!A68 -> Eingabe [Watt] | Q10: =Translation!A70 -> Warmwasser-Wärmepumpe | R10: =Leistungsdaten!A257 -> WWK 220 electronic | S10: =Translation!A75 -> Eingabe in % | T10: 0 | U10: 5 | V10: 0.99 | X10: 35 | Y10: 2 | Z10: 2 | AA10: | English
E11: =Translation!A52 -> Grundwasser (Zwischen-WT) | F11: 3 x | H11: =Translation!A60 -> Bivalent-Parallel | I11: -8 °C | J11: 40 °C | K11: 5 K | L11: 15 °C | M11: -12 °C | N11: -3 °C | O11: 6 °C | Q11: =Translation!A71 -> Sonstige Wärmeerzeuger | R11: =Leistungsdaten!A258 -> WWK 300 electronic | T11: -3 | U11: 6 | V11: 0.99 | X11: 40 | Y11: 3 | Z11: 3 | AA11: | Nederlands
E12: =Translation!A53 -> Grundwasser | F12: 4 x | H12: =Translation!A61 -> Bivalent-Alternativ | I12: -7 °C | J12: 45 °C | K12: 6 K | M12: -13 °C | N12: -2 °C | O12: 7 °C | Q12: =Translation!A72 -> Keine Warmwasserbereitung | R12: =Leistungsdaten!A259 -> WWK 300 electronic SOL | T12: -2 | U12: 7 | V12: 0.99 | X12: 45 | Y12: 4 | Z12: 4 | AA12: | Francais
F13: 5 x | H13: =Translation!A62 -> Bivalent-Teilparallel | I13: -6 °C | J13: 50 °C | K13: 7 K | M13: -14 °C | N13: -1 °C | O13: 8 °C | R13: =Leistungsdaten!A260 -> WWK 221 electronic | T13: -1 | U13: 8 | V13: 0.99 | X13: 50 | Y13: 5 | Z13: 5 | AA13: | Suomi
F14: 6 x | I14: -5 °C | J14: 55 °C | K14: 8 K | M14: -15 °C | N14: 0 °C | O14: 9 °C | R14: =Leistungsdaten!A261 -> WWK 301 electronic | T14: 0 | U14: 9 | V14: 0.98 | X14: 55 | Y14: 6
I15: -4 °C | K15: 9 K | M15: -16 °C | N15: 1 °C | O15: 10 °C | R15: =Leistungsdaten!A262 -> WWK 301 electronic SOL | T15: 1 | U15: 10 | V15: 0.97
I16: -3 °C | K16: 10 K | M16: -17 °C | N16: 2 °C | O16: 11 °C | R16: =Leistungsdaten!A263 -> WWS 20 | T16: 2 | U16: 11 | V16: 0.96
I17: -2 °C | M17: -18 °C | N17: 3 °C | O17: 12 °C | R17: =Leistungsdaten!A264 -> LWA 252 | T17: 3 | U17: 12 | V17: 0.95
I18: -1 °C | N18: 4 °C | O18: 13 °C | R18: =Leistungsdaten!A265 -> LWA 100 | T18: 4 | U18: 13 | V18: 0.93
I19: 0 °C | N19: 5 °C | O19: 14 °C | R19: =Leistungsdaten!A266 -> 0 | T19: 5 | U19: 14 | V19: 0.9
I20: 1 °C | O20: 15 °C | R20: =Leistungsdaten!A267 -> 0 | U20: 15 | V20: 0.87
I21: 2 °C | O21: 16 °C | R21: =Leistungsdaten!A268 -> 0 | U21: 16 | V21: 0.83
I22: 3 °C | O22: 17 °C | R22: =Leistungsdaten!A269 -> 0 | U22: 17 | V22: 0.77
I23: 4 °C | O23: 18 °C | R23: =Leistungsdaten!A270 -> 0 | U23: 18 | V23: 0.7
I24: 5 °C | O24: 19 °C | R24: =Leistungsdaten!A271 -> 0 | U24: 19 | V24: 0.61
J25: Abweichende VL-Temp ? | O25: 20 °C | R25: =Leistungsdaten!A272 -> 0 | U25: 20
J26: =IF(ISERROR(VLOOKUP(J6,J9:J14,1,FALSE)),TRUE,FALSE) -> FALSE | N26: =Translation!A66 -> Angabe wird nicht benötigt
E39: JAZ-Berechnung
E40: Luft-Wasser-WP | H40: Sole-Wasser-WP | K40: Sole-Wasser-WP (Zwischen-WT) | N40: Wasser-Wasser-WP | Q40: Kellerluft-WP
E41: Leistungszahl A-7/W35 | G41: =FIXED(VLOOKUP($G$6,Leistungsdaten!$A:$K,3,FALSE),2) -> 2,83 | H41: Leistungszahl B0/W35 | I41: Leistungszahl B0/W35: | J41: =FIXED(VLOOKUP($G$6,Leistungsdaten!$A:$K,3,FALSE),2) -> 2,83 | K41: Leistungszahl B0/W35 | L41: Leistungszahl B0/W35: | M41: =J41 -> 2,83 | N41: Leistungszahl W10/W35: | P41: =FIXED(VLOOKUP($G$6,Leistungsdaten!$A:$K,3,FALSE),2) -> 2,83 | Q41: Leistungszahl | S41: =FIXED(VLOOKUP($R$6,Leistungsdaten!$A:$K,2,FALSE),2) -> 3,42
E42: Leistungszahl A2/W35 | G42: =FIXED(VLOOKUP($G$6,Leistungsdaten!$A:$K,4,FALSE),2) -> 3,88 | H42: Korrektur Verdampfer: | J42: =VLOOKUP(T5,E208:R236,14,FALSE) ->  | K42: Korrektur Verdampfer: | M42: =J42 ->  | N42: Korrektur Verdampfer: | P42: =VLOOKUP(T5,E254:R272,14,FALSE) ->  | Q42: Korrekturfaktor Prüfstand | S42: =VLOOKUP($R$6,Leistungsdaten!$A:$K,4,FALSE) -> 1.05
E43: Leistungszahl A10/W35 | G43: =FIXED(VLOOKUP($G$6,Leistungsdaten!$A:$K,5,FALSE),2) -> 4,83 | H43: Korrektur Verflüssiger: | J43: =VLOOKUP(K6,E286:F293,2,FALSE) -> 1.0206 | K43: Korrektur Verflüssiger: | M43: =J43 -> 1.0206 | N43: Korrektur Verflüssiger: | P43: =VLOOKUP(K6,E286:F293,2,FALSE) -> 1.0206 | Q43: Korrekturfaktor WP-Art | S43: =VLOOKUP($R$6,Leistungsdaten!$A:$K,5,FALSE) -> 0.9
E44: Korrekturfaktor F1 | G44: =VLOOKUP($L$6,$E$104:$S$130,15,FALSE) -> 0.085 | H44: Korrektur Quellenpumpe | J44: =I293 -> 1.075 | K44: Korrektur Quellenpumpe | M44: =K293 -> 1.325 | N44: Korrektur Quellenpumpe | P44: =M293 -> 1.25 | Q44: Temperatur Prüfstand | S44: =VLOOKUP($R$6,Leistungsdaten!$A:$K,3,FALSE) -> 55
E45: Korrekturfaktor F2 | G45: =VLOOKUP($L$6,$E$134:$S$160,15,FALSE) -> 0.854
E46: Korrekturfaktor F3 | G46: =VLOOKUP($L$6,$E$164:$S$190,15,FALSE) -> 0.134
E47: Korrektur Verflüssiger | G47: =VLOOKUP(K6,E286:F293,2,FALSE) -> 1.0206
E48: Jahresarbeitszahl HZG (monovalent): | G48: =(G47*(G41*G44+G42*G45+G43*G46)) -> 4.287836574 | H48: Jahresarbeitszahl HZG (monovalent): | J48: =J41*J42*J43/J44 ->  | K48: Jahresarbeitszahl HZG (monovalent): | M48: =M41*M42*M43/M44 ->  | N48: Jahresarbeitszahl HZG (monovalent): | P48: =P41*P42*P43/P44 -> 
E49: Jahresarbeitszahl WWB | G49: =($G$41*0.103+$G$42*0.903+$G$43*0.061)*F290 -> 4.174009056 | H49: Jahresarbeitszahl WWB | J49: =J41*F293*VLOOKUP(T5,E208:O236,11,FALSE)/I293 ->  | K49: Jahresarbeitszahl WWB | M49: =M41*F293*VLOOKUP(T5,E208:O236,11,FALSE)/K293 ->  | N49: Jahresarbeitszahl WWB | P49: =P41*F293*VLOOKUP(T5,E254:O272,11,FALSE)/M293 ->  | Q49: Jahresarbeitszahl WWB | S49: =S41*S42*S43 -> 3.2319
E52: JAZ-Heizung (monovalent) | H52: =IF(E6=E9,G48,IF(E6=E10,J48,IF(E6=E11,M48,P48))) -> 4.287836574
E53: JAZ-Heizung (mit Deckungsanteil) | H53: =1/((V6/H52)+1-V6) -> 4.023278903
E54: JAZ-Warmwasserbereitung | H54: =IF(Q6=Q10,S49,IF(OR(Q6=Q11,Q6=Q12),1,IF(E6=E9,G49,IF(E6=E10,J49,IF(E6=E11,M49,P49))))) -> 3.2319
E55: JAZ-Gesamt | H55: =IF(OR(Q6=Q11,Q6=Q12),H53,1/(((1-W6)*V6/H52+W6*V6/H54+1-V6))) -> 3.81687029
E65: Ergebnisübergabe
E66: Bezeichnung | F66: =E9 -> Außenluft | G66: =E10 -> Erdreich | H66: =E11 -> Grundwasser (Zwischen-WT) | I66: =E12 -> Grundwasser | J66: Auswahl
E67: Deckungsanteil Alpha | J67: =V6*100&" %" -> 98 %
E68: JAZ Heizung | J68: =FIXED(H53,2) -> 4,02
E69: JAZ WWB | J69: =IF(OR(Q6=Q11,Q6=Q12),"---",FIXED(H54,2)) -> 3,23
E70: JAZ Gesamt | J70: =FIXED(H55,2) -> 3,82
E71: DeltaT Prüfstand | J71: =F285&" K" -> 5 K
E72: Text Leistungszahl 1 | F72: A-7/W35 | G72: B0/W35 | H72: B0/W35 | I72: W10/W35 | J72: =Translation!A32&" "&HLOOKUP($E$6,$F$66:$I$96,7,FALSE) -> Leistungszahl A-7/W35
E73: Leistungszahl 1 | F73: =G41 -> 2,83 | G73: =J41 -> 2,83 | H73: =M41 -> 2,83 | I73: =P41 -> 2,83 | J73: =FIXED(HLOOKUP($E$6,$F$66:$I$96,8,FALSE),2) -> 2,83
E74: Text Korrekturfaktor 1 | F74: =Translation!A35&" F1" -> Korrekturfaktor F1 | G74: =Translation!A34 -> Leistungsaufnahme Verdichter | H74: =Translation!A34 -> Leistungsaufnahme Verdichter | I74: =Translation!A34 -> Leistungsaufnahme Verdichter | J74: =HLOOKUP($E$6,$F$66:$I$96,9,FALSE) -> Korrekturfaktor F1
E75: Wert Korrekturfaktor 1 | F75: =FIXED(G44,3) -> 0,085 | G75: =FIXED(I287,2)&" KW" -> 3,88 KW | H75: =FIXED(K287,2)&" KW" -> 3,88 KW | I75: =FIXED(M287,2)&" KW" -> 3,88 KW | J75: =HLOOKUP($E$6,$F$66:$I$96,10,FALSE) -> 0,085
E76: Text Korrekturfaktor 2 | F76: =Translation!A35&" F2" -> Korrekturfaktor F2 | G76: =Translation!A36 -> Korrekturfaktor (Solepumpe) | H76: =Translation!A37 -> Korrekturfaktor (Quellenpumpen) | I76: =Translation!A38 -> Korrekturfaktor (Quellenpumpe) | J76: =HLOOKUP($E$6,$F$66:$I$96,11,FALSE) -> Korrekturfaktor F2
E77: Wert Korrekturfaktor 2 | F77: =ROUND(G45,3) -> 0.854 | G77: =ROUND(I293,3) -> 1.075 | H77: =ROUND(K293,3) -> 1.325 | I77: =ROUND(M293,3) -> 1.25 | J77: =HLOOKUP($E$6,$F$66:$I$96,12,FALSE) -> 0.854
E78: Text Korrekturfaktor 3 | F78: =Translation!A35&" F3" -> Korrekturfaktor F3 | G78: =Translation!A39 -> Korrekturfaktor (Verdampfer) | H78: =Translation!A39 -> Korrekturfaktor (Verdampfer) | I78: =Translation!A39 -> Korrekturfaktor (Verdampfer) | J78: =HLOOKUP($E$6,$F$66:$I$96,13,FALSE) -> Korrekturfaktor F3
E79: Wert Korrekturfaktor 3 | F79: =ROUND(G46,3) -> 0.134 | G79: =ROUND(J42,3) ->  | H79: =ROUND(M42,3) ->  | I79: =ROUND(P42,3) ->  | J79: =HLOOKUP($E$6,$F$66:$I$96,14,FALSE) -> 0.134
E80: Wert Korrekturfaktor Verflüssiger | F80: =G47 -> 1.0206 | G80: =J43 -> 1.0206 | H80: =M43 -> 1.0206 | I80: =P43 -> 1.0206 | J80: =FIXED(HLOOKUP($E$6,$F$66:$I$96,15,FALSE),3) -> 1,021
E81: Jahresarbeitszahl monovalent | J81: =FIXED(H52,1) -> 4,3
E82: Leistungszahl WW-WP | J82: =IF($Q$6=$Q$10,FIXED(S41,2),"---") -> 3,42
E83: Korrekturfaktor Prüfstand | J83: =IF($Q$6=$Q$10,FIXED(S42,2),"---") -> 1,05
E84: Korrekturfaktor WP-Art | J84: =IF($Q$6=$Q$10,ROUND(S43,2),"---") -> 0.9
E85: Korrektur Verdampfer (WWB) | F85: --- | G85: =FIXED(VLOOKUP(T5,E208:O236,11,FALSE),3) ->  | H85: =FIXED(VLOOKUP(T5,E208:R236,11,FALSE),3) ->  | I85: =FIXED(VLOOKUP(T5,E254:O272,11,FALSE),3) ->  | J85: =IF($Q$6=$Q$9,HLOOKUP($E$6,$F$66:$I$96,20,FALSE),"---") -> ---
E86: Korrektur Verflüssiger WWB | F86: =FIXED(F290,3) -> 1,021 | G86: =FIXED(F293,3) -> 1,052 | H86: =FIXED(F293,3) -> 1,052 | I86: =FIXED(F293,3) -> 1,052 | J86: =IF($Q$6=$Q$9,HLOOKUP($E$6,$F$66:$I$96,21,FALSE),"---") -> ---
E87: Text Leistungszahl 2 | F87: =Translation!A32&" A2/W35" -> Leistungszahl A2/W35 | G87: =Translation!A33&" B0/W35" -> Heizleistung B0/W35 | H87: =Translation!A33&" B10/W35" -> Heizleistung B10/W35 | I87: =Translation!A33&" W10/W35" -> Heizleistung W10/W35 | J87: =HLOOKUP($E$6,$F$66:$I$96,22,FALSE) -> Leistungszahl A2/W35
E88: Text Leistungszahl 3 | F88: =Translation!A32&" A10/W35" -> Leistungszahl A10/W35 | G88: --- | H88: --- | I88: --- | J88: =HLOOKUP($E$6,$F$66:$I$96,23,FALSE) -> Leistungszahl A10/W35
E89: Wert Leistungszahl 2 | F89: =G42 -> 3,88 | G89: --- | H89: =FIXED(K288,2)&" KW" -> 4,83 KW | I89: =FIXED(K288,2)&" KW" -> 4,83 KW | J89: =HLOOKUP($E$6,$F$66:$I$96,24,FALSE) -> 3,88
E90: Wert Leistungszahl 3 | F90: =G43 -> 4,83 | G90: --- | H90: --- | I90: --- | J90: =HLOOKUP($E$6,$F$66:$I$96,25,FALSE) -> 4,83
E91: Button Rechenwerte anzeigen | J91: ="| "&Translation!A76 -> | Rechenwerte
E92: Button Drucken | J92: ="| "&Translation!A77 -> | Drucken
E93: Button Solepumpe | J93: ="| "&Translation!A108 -> | Empfehlung Solepumpe
E94: Button übernehmen | J94: ="| "&Translation!A109 -> | Werte übernehmen
E95: Button Zurück | J95: ="| "&Translation!A84 -> | Zurück zum Hauptfenster
E102: JAZ Luft-Wasser - Korrekturfaktor F1
E103: Heizgrenze | F103: Norm-Außentemp. | G103: 15 | H103: 20 | I103: 25 | J103: 30 | K103: 35 | L103: 40 | M103: 45 | N103: 50 | O103: 55 | P103: 60 | Q103: 65 | R103: Bei Vorlauftemp. | S103: bei Norm-Außentemp.
E104: 10 °C | F104: =$M$9 -> -10 °C | G104: 0.1263809524 | H104: 0.1205238095 | I104: 0.1146666667 | J104: 0.109 | K104: 0.103 | L104: 0.097 | M104: 0.091 | N104: 0.085 | O104: 0.08 | P104: 0.07366666667 | Q104: 0.06780952381 | R104: =HLOOKUP(FLOOR($X$6,5),$G$103:$Q$130,T104,FALSE)-($X$6-FLOOR($X$6,5))*((HLOOKUP(FLOOR($X$6,5),$G$103:$Q$130,T104,FALSE)-HLOOKUP(FLOOR($X$6,5)+5,$G$103:$Q$130,T104,FALSE))/5) -> 0.103 | S104: =VLOOKUP($M$6,F104:S112,13,FALSE) -> 0.103 | T104: 2
F105: =$M$10 -> -11 °C | G105: =AVERAGE(G104,G106) -> 0.1551666667 | H105: =AVERAGE(H104,H106) -> 0.1481666667 | I105: 0.1411666667 | J105: 0.1345 | K105: 0.127 | L105: 0.12 | M105: 0.113 | N105: 0.106 | O105: 0.0995 | P105: 0.09216666667 | Q105: 0.08516666667 | R105: 0.127 | T105: 3
F106: =$M$11 -> -12 °C | G106: 0.183952381 | H106: 0.1758095238 | I106: 0.1676666667 | J106: 0.16 | K106: 0.151 | L106: 0.143 | M106: 0.135 | N106: 0.127 | O106: 0.119 | P106: 0.1106666667 | Q106: 0.1025238095 | R106: 0.151 | T106: 4
F107: =$M$12 -> -13 °C | G107: =AVERAGE(G106,G108) -> 0.2089761905 | H107: =AVERAGE(H106,H108) -> 0.1999047619 | I107: =AVERAGE(I106,I108) -> 0.1908333333 | J107: =AVERAGE(J106,J108) -> 0.182 | K107: =AVERAGE(K106,K108) -> 0.1725 | L107: =AVERAGE(L106,L108) -> 0.1635 | M107: =AVERAGE(M106,M108) -> 0.1545 | N107: =AVERAGE(N106,N108) -> 0.1455 | O107: =AVERAGE(O106,O108) -> 0.1365 | P107: =AVERAGE(P106,P108) -> 0.1273333333 | Q107: =AVERAGE(Q106,Q108) -> 0.1182619048 | R107: 0.1725 | T107: 5
F108: =$M$13 -> -14 °C | G108: 0.234 | H108: 0.224 | I108: 0.214 | J108: 0.204 | K108: 0.194 | L108: 0.184 | M108: 0.174 | N108: 0.164 | O108: 0.154 | P108: 0.144 | Q108: 0.134 | R108: 0.194 | T108: 6
F109: =$M$14 -> -15 °C | G109: =AVERAGE(G108,G110) -> 0.2980380952 | H109: =AVERAGE(H108,H110) -> 0.285652381 | I109: =AVERAGE(I108,I110) -> 0.2732666667 | J109: =AVERAGE(J108,J110) -> 0.261 | K109: =AVERAGE(K108,K110) -> 0.2485 | L109: =AVERAGE(L108,L110) -> 0.236 | M109: =AVERAGE(M108,M110) -> 0.2235 | N109: =AVERAGE(N108,N110) -> 0.2115 | O109: =AVERAGE(O108,O110) -> 0.199 | P109: =AVERAGE(P108,P110) -> 0.1865666667 | Q109: =AVERAGE(Q108,Q110) -> 0.1741809524 | R109: 0.2485 | T109: 7
F110: =$M$15 -> -16 °C | G110: 0.3620761905 | H110: 0.3473047619 | I110: 0.3325333333 | J110: 0.318 | K110: 0.303 | L110: 0.288 | M110: 0.273 | N110: 0.259 | O110: 0.244 | P110: 0.2291333333 | Q110: 0.2143619048 | R110: 0.303 | T110: 8
F111: =$M$16 -> -17 °C | G111: =AVERAGE(G110,G112) -> 0.3620761905 | H111: =AVERAGE(H110,H112) -> 0.3473047619 | I111: =AVERAGE(I110,I112) -> 0.3325333333 | J111: =AVERAGE(J110,J112) -> 0.318 | K111: =AVERAGE(K110,K112) -> 0.303 | L111: =AVERAGE(L110,L112) -> 0.288 | M111: =AVERAGE(M110,M112) -> 0.273 | N111: =AVERAGE(N110,N112) -> 0.259 | O111: =AVERAGE(O110,O112) -> 0.244 | P111: =AVERAGE(P110,P112) -> 0.2291333333 | Q111: =AVERAGE(Q110,Q112) -> 0.2143619048 | R111: 0.303 | T111: 9
F112: =$M$17 -> -18 °C | G112: 0.3620761905 | H112: 0.3473047619 | I112: 0.3325333333 | J112: 0.318 | K112: 0.303 | L112: 0.288 | M112: 0.273 | N112: 0.259 | O112: 0.244 | P112: 0.2291333333 | Q112: 0.2143619048 | R112: 0.303 | T112: 10
E113: 12 °C | F113: =$M$9 -> -10 °C | G113: 0.1034285714 | H113: 0.09871428571 | I113: 0.094 | J113: 0.089 | K113: 0.085 | L113: 0.08 | M113: 0.075 | N113: 0.07 | O113: 0.066 | P113: 0.061 | Q113: 0.05628571429 | R113: 0.085 | S113: =VLOOKUP($M$6,F113:S121,13,FALSE) -> 0.085 | T113: 11
F114: =$M$10 -> -11 °C | G114: =AVERAGE(G113,G115) -> 0.129252381 | H114: =AVERAGE(H113,H115) -> 0.1235095238 | I114: =AVERAGE(I113,I115) -> 0.1177666667 | J114: =AVERAGE(J113,J115) -> 0.112 | K114: =AVERAGE(K113,K115) -> 0.1065 | L114: =AVERAGE(L113,L115) -> 0.1005 | M114: =AVERAGE(M113,M115) -> 0.0945 | N114: =AVERAGE(N113,N115) -> 0.089 | O114: =AVERAGE(O113,O115) -> 0.0835 | P114: =AVERAGE(P113,P115) -> 0.07756666667 | Q114: =AVERAGE(Q113,Q115) -> 0.07182380952 | R114: 0.1065 | T114: 12
F115: =$M$11 -> -12 °C | G115: 0.1550761905 | H115: 0.1483047619 | I115: 0.1415333333 | J115: 0.135 | K115: 0.128 | L115: 0.121 | M115: 0.114 | N115: 0.108 | O115: 0.101 | P115: 0.09413333333 | Q115: 0.08736190476 | R115: 0.128 | T115: 13
F116: =$M$12 -> -13 °C | G116: =AVERAGE(G115,G117) -> 0.1782714286 | H116: =AVERAGE(H115,H117) -> 0.1705857143 | I116: =AVERAGE(I115,I117) -> 0.1629 | J116: =AVERAGE(J115,J117) -> 0.1555 | K116: =AVERAGE(K115,K117) -> 0.1475 | L116: =AVERAGE(L115,L117) -> 0.1395 | M116: =AVERAGE(M115,M117) -> 0.132 | N116: =AVERAGE(N115,N117) -> 0.1245 | O116: =AVERAGE(O115,O117) -> 0.117 | P116: =AVERAGE(P115,P117) -> 0.1091 | Q116: =AVERAGE(Q115,Q117) -> 0.1014142857 | R116: 0.1475 | T116: 14
F117: =$M$13 -> -14 °C | G117: 0.2014666667 | H117: 0.1928666667 | I117: 0.1842666667 | J117: 0.176 | K117: 0.167 | L117: 0.158 | M117: 0.15 | N117: 0.141 | O117: 0.133 | P117: 0.1240666667 | Q117: 0.1154666667 | R117: 0.167 | T117: 15
F118: =$M$14 -> -15 °C | G118: =AVERAGE(G117,G119) -> 0.2597333333 | H118: =AVERAGE(H117,H119) -> 0.2489333333 | I118: =AVERAGE(I117,I119) -> 0.2381333333 | J118: =AVERAGE(J117,J119) -> 0.2275 | K118: =AVERAGE(K117,K119) -> 0.2165 | L118: =AVERAGE(L117,L119) -> 0.2055 | M118: =AVERAGE(M117,M119) -> 0.195 | N118: =AVERAGE(N117,N119) -> 0.184 | O118: =AVERAGE(O117,O119) -> 0.1735 | P118: =AVERAGE(P117,P119) -> 0.1625333333 | Q118: =AVERAGE(Q117,Q119) -> 0.1517333333 | R118: 0.2165 | T118: 16
F119: =$M$15 -> -16 °C | G119: 0.318 | H119: 0.305 | I119: 0.292 | J119: 0.279 | K119: 0.266 | L119: 0.253 | M119: 0.24 | N119: 0.227 | O119: 0.214 | P119: 0.201 | Q119: 0.188 | R119: 0.266 | T119: 17
F120: =$M$16 -> -17 °C | G120: =AVERAGE(G119,G121) -> 0.318 | H120: =AVERAGE(H119,H121) -> 0.305 | I120: =AVERAGE(I119,I121) -> 0.292 | J120: =AVERAGE(J119,J121) -> 0.279 | K120: =AVERAGE(K119,K121) -> 0.266 | L120: =AVERAGE(L119,L121) -> 0.253 | M120: =AVERAGE(M119,M121) -> 0.24 | N120: =AVERAGE(N119,N121) -> 0.227 | O120: =AVERAGE(O119,O121) -> 0.214 | P120: =AVERAGE(P119,P121) -> 0.201 | Q120: =AVERAGE(Q119,Q121) -> 0.188 | R120: 0.266 | T120: 18
F121: =$M$17 -> -18 °C | G121: 0.318 | H121: 0.305 | I121: 0.292 | J121: 0.279 | K121: 0.266 | L121: 0.253 | M121: 0.24 | N121: 0.227 | O121: 0.214 | P121: 0.201 | Q121: 0.188 | R121: 0.266 | T121: 19
E122: 15 °C | F122: =$M$9 -> -10 °C | G122: 0.08108571429 | H122: 0.07734285714 | I122: 0.0736 | J122: 0.07 | K122: 0.066 | L122: 0.062 | M122: 0.059 | N122: 0.055 | O122: 0.051 | P122: 0.0474 | Q122: 0.04365714286 | R122: 0.066 | S122: =VLOOKUP($M$6,F122:S130,13,FALSE) -> 0.066 | T122: 20
F123: =$M$10 -> -11 °C | G123: =AVERAGE(G122,G124) -> 0.1036047619 | H123: =AVERAGE(H122,H124) -> 0.09891904762 | I123: =AVERAGE(I122,I124) -> 0.09423333333 | J123: =AVERAGE(J122,J124) -> 0.0895 | K123: =AVERAGE(K122,K124) -> 0.085 | L123: =AVERAGE(L122,L124) -> 0.08 | M123: =AVERAGE(M122,M124) -> 0.0755 | N123: =AVERAGE(N122,N124) -> 0.071 | O123: =AVERAGE(O122,O124) -> 0.066 | P123: =AVERAGE(P122,P124) -> 0.06143333333 | Q123: =AVERAGE(Q122,Q124) -> 0.05674761905 | R123: 0.085 | T123: 21
F124: =$M$11 -> -12 °C | G124: 0.1261238095 | H124: 0.1204952381 | I124: 0.1148666667 | J124: 0.109 | K124: 0.104 | L124: 0.098 | M124: 0.092 | N124: 0.087 | O124: 0.081 | P124: 0.07546666667 | Q124: 0.06983809524 | R124: 0.104 | T124: 22
F125: =$M$12 -> -13 °C | G125: =AVERAGE(G124,G126) -> 0.1455619048 | H125: =AVERAGE(H124,H126) -> 0.139247619 | I125: =AVERAGE(I124,I126) -> 0.1329333333 | J125: =AVERAGE(J124,J126) -> 0.1265 | K125: =AVERAGE(K124,K126) -> 0.1205 | L125: =AVERAGE(L124,L126) -> 0.114 | M125: =AVERAGE(M124,M126) -> 0.1075 | N125: =AVERAGE(N124,N126) -> 0.1015 | O125: =AVERAGE(O124,O126) -> 0.095 | P125: =AVERAGE(P124,P126) -> 0.08873333333 | Q125: =AVERAGE(Q124,Q126) -> 0.08241904762 | R125: 0.1205 | T125: 23
F126: =$M$13 -> -14 °C | G126: 0.165 | H126: 0.158 | I126: 0.151 | J126: 0.144 | K126: 0.137 | L126: 0.13 | M126: 0.123 | N126: 0.116 | O126: 0.109 | P126: 0.102 | Q126: 0.095 | R126: 0.137 | T126: 24
F127: =$M$14 -> -15 °C | G127: =AVERAGE(G126,G128) -> 0.2165 | H127: =AVERAGE(H126,H128) -> 0.2075 | I127: =AVERAGE(I126,I128) -> 0.1985 | J127: =AVERAGE(J126,J128) -> 0.1895 | K127: =AVERAGE(K126,K128) -> 0.1805 | L127: =AVERAGE(L126,L128) -> 0.1715 | M127: =AVERAGE(M126,M128) -> 0.1625 | N127: =AVERAGE(N126,N128) -> 0.1535 | O127: =AVERAGE(O126,O128) -> 0.1445 | P127: =AVERAGE(P126,P128) -> 0.1355 | Q127: =AVERAGE(Q126,Q128) -> 0.1265 | R127: 0.1805 | T127: 25
F128: =$M$15 -> -16 °C | G128: 0.268 | H128: 0.257 | I128: 0.246 | J128: 0.235 | K128: 0.224 | L128: 0.213 | M128: 0.202 | N128: 0.191 | O128: 0.18 | P128: 0.169 | Q128: 0.158 | R128: 0.224 | T128: 26
F129: =$M$16 -> -17 °C | G129: =AVERAGE(G128,G130) -> 0.268 | H129: =AVERAGE(H128,H130) -> 0.257 | I129: =AVERAGE(I128,I130) -> 0.246 | J129: =AVERAGE(J128,J130) -> 0.235 | K129: =AVERAGE(K128,K130) -> 0.224 | L129: =AVERAGE(L128,L130) -> 0.213 | M129: =AVERAGE(M128,M130) -> 0.202 | N129: =AVERAGE(N128,N130) -> 0.191 | O129: =AVERAGE(O128,O130) -> 0.18 | P129: =AVERAGE(P128,P130) -> 0.169 | Q129: =AVERAGE(Q128,Q130) -> 0.158 | R129: 0.224 | T129: 27
F130: =$M$17 -> -18 °C | G130: 0.268 | H130: 0.257 | I130: 0.246 | J130: 0.235 | K130: 0.224 | L130: 0.213 | M130: 0.202 | N130: 0.191 | O130: 0.18 | P130: 0.169 | Q130: 0.158 | R130: 0.224 | T130: 28
E132: JAZ Luft-Wasser - Korrekturfaktor F2
E133: Heizgrenze | F133: Stadt | G133: 15 | H133: 20 | I133: 25 | J133: 30 | K133: 35 | L133: 40 | M133: 45 | N133: 50 | O133: 55 | P133: 60 | Q133: 65 | R133: Bei Vorlauftemp. | S133: bei Norm-Außentemp.
E134: 10 °C | F134: =$M$9 -> -10 °C | G134: 1.060209524 | H134: 1.020838095 | I134: 0.9814666667 | J134: 0.942 | K134: 0.903 | L134: 0.863 | M134: 0.824 | N134: 0.785 | O134: 0.745 | P134: 0.7058666667 | Q134: 0.6664952381 | R134: =HLOOKUP(FLOOR($X$6,5),$G$133:$Q$160,T134,FALSE)-($X$6-FLOOR($X$6,5))*((HLOOKUP(FLOOR($X$6,5),$G$133:$Q$160,T134,FALSE)-HLOOKUP(FLOOR($X$6,5)+5,$G$133:$Q$160,T134,FALSE))/5) -> 0.903 | S134: =VLOOKUP($M$6,F134:S142,13,FALSE) -> 0.903 | T134: 2
F135: =$M$10 -> -11 °C | G135: =AVERAGE(G134,G136) -> 1.028604762 | H135: =AVERAGE(H134,H136) -> 0.9909190476 | I135: =AVERAGE(I134,I136) -> 0.9532333333 | J135: =AVERAGE(J134,J136) -> 0.9155 | K135: =AVERAGE(K134,K136) -> 0.878 | L135: =AVERAGE(L134,L136) -> 0.84 | M135: =AVERAGE(M134,M136) -> 0.8025 | N135: =AVERAGE(N134,N136) -> 0.765 | O135: =AVERAGE(O134,O136) -> 0.727 | P135: =AVERAGE(P134,P136) -> 0.6894333333 | Q135: =AVERAGE(Q134,Q136) -> 0.651747619 | R135: 0.878 | T135: 3
F136: =$M$11 -> -12 °C | G136: 0.997 | H136: 0.961 | I136: 0.925 | J136: 0.889 | K136: 0.853 | L136: 0.817 | M136: 0.781 | N136: 0.745 | O136: 0.709 | P136: 0.673 | Q136: 0.637 | R136: 0.853 | T136: 4
F137: =$M$12 -> -13 °C | G137: =AVERAGE(G136,G138) -> 0.9709619048 | H137: =AVERAGE(H136,H138) -> 0.936347619 | I137: =AVERAGE(I136,I138) -> 0.9017333333 | J137: =AVERAGE(J136,J138) -> 0.867 | K137: =AVERAGE(K136,K138) -> 0.8325 | L137: =AVERAGE(L136,L138) -> 0.798 | M137: =AVERAGE(M136,M138) -> 0.7635 | N137: =AVERAGE(N136,N138) -> 0.7285 | O137: =AVERAGE(O136,O138) -> 0.694 | P137: =AVERAGE(P136,P138) -> 0.6594333333 | Q137: =AVERAGE(Q136,Q138) -> 0.6248190476 | R137: 0.8325 | T137: 5
F138: =$M$13 -> -14 °C | G138: 0.9449238095 | H138: 0.9116952381 | I138: 0.8784666667 | J138: 0.845 | K138: 0.812 | L138: 0.779 | M138: 0.746 | N138: 0.712 | O138: 0.679 | P138: 0.6458666667 | Q138: 0.6126380952 | R138: 0.812 | T138: 6
F139: =$M$14 -> -15 °C | G139: =AVERAGE(G138,G140) -> 0.8800047619 | H139: =AVERAGE(H138,H140) -> 0.8495190476 | I139: =AVERAGE(I138,I140) -> 0.8190333333 | J139: =AVERAGE(J138,J140) -> 0.7885 | K139: =AVERAGE(K138,K140) -> 0.758 | L139: =AVERAGE(L138,L140) -> 0.7275 | M139: =AVERAGE(M138,M140) -> 0.6975 | N139: =AVERAGE(N138,N140) -> 0.6665 | O139: =AVERAGE(O138,O140) -> 0.636 | P139: =AVERAGE(P138,P140) -> 0.6056333333 | Q139: =AVERAGE(Q138,Q140) -> 0.575147619 | R139: 0.758 | T139: 7
F140: =$M$15 -> -16 °C | G140: 0.8150857143 | H140: 0.7873428571 | I140: 0.7596 | J140: 0.732 | K140: 0.704 | L140: 0.676 | M140: 0.649 | N140: 0.621 | O140: 0.593 | P140: 0.5654 | Q140: 0.5376571429 | R140: 0.704 | T140: 8
F141: =$M$16 -> -17 °C | G141: =AVERAGE(G140,G142) -> 0.8150857143 | H141: =AVERAGE(H140,H142) -> 0.7873428571 | I141: =AVERAGE(I140,I142) -> 0.7596 | J141: =AVERAGE(J140,J142) -> 0.732 | K141: =AVERAGE(K140,K142) -> 0.704 | L141: =AVERAGE(L140,L142) -> 0.676 | M141: =AVERAGE(M140,M142) -> 0.649 | N141: =AVERAGE(N140,N142) -> 0.621 | O141: =AVERAGE(O140,O142) -> 0.593 | P141: =AVERAGE(P140,P142) -> 0.5654 | Q141: =AVERAGE(Q140,Q142) -> 0.5376571429 | R141: 0.704 | T141: 9
F142: =$M$17 -> -18 °C | G142: 0.8150857143 | H142: 0.7873428571 | I142: 0.7596 | J142: 0.732 | K142: 0.704 | L142: 0.676 | M142: 0.649 | N142: 0.621 | O142: 0.593 | P142: 0.5654 | Q142: 0.5376571429 | R142: 0.704 | T142: 10
E143: 12 °C | F143: =$M$9 -> -10 °C | G143: 1.001085714 | H143: 0.9643428571 | I143: 0.9276 | J143: 0.891 | K143: 0.854 | L143: 0.817 | M143: 0.781 | N143: 0.744 | O143: 0.707 | P143: 0.6704 | Q143: 0.6336571429 | R143: 0.854 | S143: =VLOOKUP($M$6,F143:S151,13,FALSE) -> 0.854 | T143: 11
F144: =$M$10 -> -11 °C | G144: =AVERAGE(G143,G145) -> 0.9817761905 | H144: =AVERAGE(H143,H145) -> 0.9461047619 | I144: =AVERAGE(I143,I145) -> 0.9104333333 | J144: =AVERAGE(J143,J145) -> 0.875 | K144: =AVERAGE(K143,K145) -> 0.839 | L144: =AVERAGE(L143,L145) -> 0.803 | M144: =AVERAGE(M143,M145) -> 0.768 | N144: =AVERAGE(N143,N145) -> 0.732 | O144: =AVERAGE(O143,O145) -> 0.6965 | P144: =AVERAGE(P143,P145) -> 0.6607333333 | Q144: =AVERAGE(Q143,Q145) -> 0.6250619048 | R144: 0.839 | T144: 12
F145: =$M$11 -> -12 °C | G145: 0.9624666667 | H145: 0.9278666667 | I145: 0.8932666667 | J145: 0.859 | K145: 0.824 | L145: 0.789 | M145: 0.755 | N145: 0.72 | O145: 0.686 | P145: 0.6510666667 | Q145: 0.6164666667 | R145: 0.824 | T145: 13
F146: =$M$12 -> -13 °C | G146: =AVERAGE(G145,G147) -> 0.9431904762 | H146: =AVERAGE(H145,H147) -> 0.9097619048 | I146: =AVERAGE(I145,I147) -> 0.8763333333 | J146: =AVERAGE(J145,J147) -> 0.843 | K146: =AVERAGE(K145,K147) -> 0.8095 | L146: =AVERAGE(L145,L147) -> 0.776 | M146: =AVERAGE(M145,M147) -> 0.7425 | N146: =AVERAGE(N145,N147) -> 0.709 | O146: =AVERAGE(O145,O147) -> 0.676 | P146: =AVERAGE(P145,P147) -> 0.6423333333 | Q146: =AVERAGE(Q145,Q147) -> 0.6089047619 | R146: 0.8095 | T146: 14
F147: =$M$13 -> -14 °C | G147: 0.9239142857 | H147: 0.8916571429 | I147: 0.8594 | J147: 0.827 | K147: 0.795 | L147: 0.763 | M147: 0.73 | N147: 0.698 | O147: 0.666 | P147: 0.6336 | Q147: 0.6013428571 | R147: 0.795 | T147: 15
F148: =$M$14 -> -15 °C | G148: =AVERAGE(G147,G149) -> 0.8672 | H148: =AVERAGE(H147,H149) -> 0.8373 | I148: =AVERAGE(I147,I149) -> 0.8074 | J148: =AVERAGE(J147,J149) -> 0.7775 | K148: =AVERAGE(K147,K149) -> 0.7475 | L148: =AVERAGE(L147,L149) -> 0.718 | M148: =AVERAGE(M147,M149) -> 0.6875 | N148: =AVERAGE(N147,N149) -> 0.658 | O148: =AVERAGE(O147,O149) -> 0.628 | P148: =AVERAGE(P147,P149) -> 0.5981 | Q148: =AVERAGE(Q147,Q149) -> 0.5682 | R148: 0.7475 | T148: 16
F149: =$M$15 -> -16 °C | G149: 0.8104857143 | H149: 0.7829428571 | I149: 0.7554 | J149: 0.728 | K149: 0.7 | L149: 0.673 | M149: 0.645 | N149: 0.618 | O149: 0.59 | P149: 0.5626 | Q149: 0.5350571429 | R149: 0.7 | T149: 17
F150: =$M$16 -> -17 °C | G150: =AVERAGE(G149,G151) -> 0.8104857143 | H150: =AVERAGE(H149,H151) -> 0.7829428571 | I150: =AVERAGE(I149,I151) -> 0.7554 | J150: =AVERAGE(J149,J151) -> 0.728 | K150: =AVERAGE(K149,K151) -> 0.7 | L150: =AVERAGE(L149,L151) -> 0.673 | M150: =AVERAGE(M149,M151) -> 0.645 | N150: =AVERAGE(N149,N151) -> 0.618 | O150: =AVERAGE(O149,O151) -> 0.59 | P150: =AVERAGE(P149,P151) -> 0.5626 | Q150: =AVERAGE(Q149,Q151) -> 0.5350571429 | R150: 0.7 | T150: 18
F151: =$M$17 -> -18 °C | G151: 0.8104857143 | H151: 0.7829428571 | I151: 0.7554 | J151: 0.728 | K151: 0.7 | L151: 0.673 | M151: 0.645 | N151: 0.618 | O151: 0.59 | P151: 0.5626 | Q151: 0.5350571429 | R151: 0.7 | T151: 19
E152: 15 °C | F152: =$M$9 -> -10 °C | G152: 0.8974095238 | H152: 0.8646380952 | I152: 0.8318666667 | J152: 0.799 | K152: 0.766 | L152: 0.734 | M152: 0.701 | N152: 0.668 | O152: 0.635 | P152: 0.6024666667 | Q152: 0.5696952381 | R152: 0.766 | S152: =VLOOKUP($M$6,F152:S160,13,FALSE) -> 0.766 | T152: 20
F153: =$M$10 -> -11 °C | G153: =AVERAGE(G152,G154) -> 0.8932428571 | H153: =AVERAGE(H152,H154) -> 0.8609714286 | I153: =AVERAGE(I152,I154) -> 0.8287 | J153: =AVERAGE(J152,J154) -> 0.7965 | K153: =AVERAGE(K152,K154) -> 0.764 | L153: =AVERAGE(L152,L154) -> 0.732 | M153: =AVERAGE(M152,M154) -> 0.6995 | N153: =AVERAGE(N152,N154) -> 0.6675 | O153: =AVERAGE(O152,O154) -> 0.635 | P153: =AVERAGE(P152,P154) -> 0.6028 | Q153: =AVERAGE(Q152,Q154) -> 0.5705285714 | R153: 0.764 | T153: 21
F154: =$M$11 -> -12 °C | G154: 0.8890761905 | H154: 0.8573047619 | I154: 0.8255333333 | J154: 0.794 | K154: 0.762 | L154: 0.73 | M154: 0.698 | N154: 0.667 | O154: 0.635 | P154: 0.6031333333 | Q154: 0.5713619048 | R154: 0.762 | T154: 22
F155: =$M$12 -> -13 °C | G155: =AVERAGE(G154,G156) -> 0.8775380952 | H155: =AVERAGE(H154,H156) -> 0.846652381 | I155: =AVERAGE(I154,I156) -> 0.8157666667 | J155: =AVERAGE(J154,J156) -> 0.785 | K155: =AVERAGE(K154,K156) -> 0.754 | L155: =AVERAGE(L154,L156) -> 0.723 | M155: =AVERAGE(M154,M156) -> 0.692 | N155: =AVERAGE(N154,N156) -> 0.6615 | O155: =AVERAGE(O154,O156) -> 0.6305 | P155: =AVERAGE(P154,P156) -> 0.5995666667 | Q155: =AVERAGE(Q154,Q156) -> 0.5686809524 | R155: 0.754 | T155: 23
F156: =$M$13 -> -14 °C | G156: 0.866 | H156: 0.836 | I156: 0.806 | J156: 0.776 | K156: 0.746 | L156: 0.716 | M156: 0.686 | N156: 0.656 | O156: 0.626 | P156: 0.596 | Q156: 0.566 | R156: 0.746 | T156: 24
F157: =$M$14 -> -15 °C | G157: =AVERAGE(G156,G158) -> 0.8194761905 | H157: =AVERAGE(H156,H158) -> 0.7914047619 | I157: =AVERAGE(I156,I158) -> 0.7633333333 | J157: =AVERAGE(J156,J158) -> 0.7355 | K157: =AVERAGE(K156,K158) -> 0.707 | L157: =AVERAGE(L156,L158) -> 0.679 | M157: =AVERAGE(M156,M158) -> 0.651 | N157: =AVERAGE(N156,N158) -> 0.623 | O157: =AVERAGE(O156,O158) -> 0.595 | P157: =AVERAGE(P156,P158) -> 0.5668333333 | Q157: =AVERAGE(Q156,Q158) -> 0.5387619048 | R157: 0.707 | T157: 25
F158: =$M$15 -> -16 °C | G158: 0.772952381 | H158: 0.7468095238 | I158: 0.7206666667 | J158: 0.695 | K158: 0.668 | L158: 0.642 | M158: 0.616 | N158: 0.59 | O158: 0.564 | P158: 0.5376666667 | Q158: 0.5115238095 | R158: 0.668 | T158: 26
F159: =$M$16 -> -17 °C | G159: =AVERAGE(G158,G160) -> 0.772952381 | H159: =AVERAGE(H158,H160) -> 0.7468095238 | I159: =AVERAGE(I158,I160) -> 0.7206666667 | J159: =AVERAGE(J158,J160) -> 0.695 | K159: =AVERAGE(K158,K160) -> 0.668 | L159: =AVERAGE(L158,L160) -> 0.642 | M159: =AVERAGE(M158,M160) -> 0.616 | N159: =AVERAGE(N158,N160) -> 0.59 | O159: =AVERAGE(O158,O160) -> 0.564 | P159: =AVERAGE(P158,P160) -> 0.5376666667 | Q159: =AVERAGE(Q158,Q160) -> 0.5115238095 | R159: 0.668 | T159: 27
F160: =$M$17 -> -18 °C | G160: 0.772952381 | H160: 0.7468095238 | I160: 0.7206666667 | J160: 0.695 | K160: 0.668 | L160: 0.642 | M160: 0.616 | N160: 0.59 | O160: 0.564 | P160: 0.5376666667 | Q160: 0.5115238095 | R160: 0.668 | T160: 28
E162: JAZ Luft-Wasser - Korrekturfaktor F3
E163: Heizgrenze | F163: Stadt | G163: 15 | H163: 20 | I163: 25 | J163: 30 | K163: 35 | L163: 40 | M163: 45 | N163: 50 | O163: 55 | P163: 60 | Q163: 65 | R163: Bei Vorlauftemp. | S163: bei Norm-Außentemp.
E164: 10 °C | F164: =$M$9 -> -10 °C | G164: 0.069 | H164: 0.067 | I164: 0.065 | J164: 0.063 | K164: 0.061 | L164: 0.059 | M164: 0.057 | N164: 0.055 | O164: 0.053 | P164: 0.051 | Q164: 0.049 | R164: =HLOOKUP(FLOOR($X$6,5),$G$163:$Q$190,T164,FALSE)-($X$6-FLOOR($X$6,5))*((HLOOKUP(FLOOR($X$6,5),$G$163:$Q$190,T164,FALSE)-HLOOKUP(FLOOR($X$6,5)+5,$G$163:$Q$190,T164,FALSE))/5) -> 0.061 | S164: =VLOOKUP($M$6,F164:S172,13,FALSE) -> 0.061 | T164: 2
F165: =$M$10 -> -11 °C | G165: =AVERAGE(G164,G166) -> 0.06254285714 | H165: =AVERAGE(H164,H166) -> 0.06067142857 | I165: =AVERAGE(I164,I166) -> 0.0588 | J165: =AVERAGE(J164,J166) -> 0.057 | K165: =AVERAGE(K164,K166) -> 0.055 | L165: =AVERAGE(L164,L166) -> 0.053 | M165: =AVERAGE(M164,M166) -> 0.0515 | N165: =AVERAGE(N164,N166) -> 0.0495 | O165: =AVERAGE(O164,O166) -> 0.0475 | P165: =AVERAGE(P164,P166) -> 0.0457 | Q165: =AVERAGE(Q164,Q166) -> 0.04382857143 | R165: 0.055 | T165: 3
F166: =$M$11 -> -12 °C | G166: 0.05608571429 | H166: 0.05434285714 | I166: 0.0526 | J166: 0.051 | K166: 0.049 | L166: 0.047 | M166: 0.046 | N166: 0.044 | O166: 0.042 | P166: 0.0404 | Q166: 0.03865714286 | R166: 0.049 | T166: 4
F167: =$M$12 -> -13 °C | G167: =AVERAGE(G166,G168) -> 0.05164761905 | H167: =AVERAGE(H166,H168) -> 0.05009047619 | I167: =AVERAGE(I166,I168) -> 0.04853333333 | J167: =AVERAGE(J166,J168) -> 0.047 | K167: =AVERAGE(K166,K168) -> 0.0455 | L167: =AVERAGE(L166,L168) -> 0.0435 | M167: =AVERAGE(M166,M168) -> 0.0425 | N167: =AVERAGE(N166,N168) -> 0.041 | O167: =AVERAGE(O166,O168) -> 0.039 | P167: =AVERAGE(P166,P168) -> 0.03763333333 | Q167: =AVERAGE(Q166,Q168) -> 0.03607619048 | R167: 0.0455 | T167: 5
F168: =$M$13 -> -14 °C | G168: 0.04720952381 | H168: 0.04583809524 | I168: 0.04446666667 | J168: 0.043 | K168: 0.042 | L168: 0.04 | M168: 0.039 | N168: 0.038 | O168: 0.036 | P168: 0.03486666667 | Q168: 0.0334952381 | R168: 0.042 | T168: 6
F169: =$M$14 -> -15 °C | G169: =AVERAGE(G168,G170) -> 0.0431047619 | H169: =AVERAGE(H168,H170) -> 0.04191904762 | I169: =AVERAGE(I168,I170) -> 0.04073333333 | J169: =AVERAGE(J168,J170) -> 0.0395 | K169: =AVERAGE(K168,K170) -> 0.0385 | L169: =AVERAGE(L168,L170) -> 0.037 | M169: =AVERAGE(M168,M170) -> 0.036 | N169: =AVERAGE(N168,N170) -> 0.035 | O169: =AVERAGE(O168,O170) -> 0.0335 | P169: =AVERAGE(P168,P170) -> 0.03243333333 | Q169: =AVERAGE(Q168,Q170) -> 0.03124761905 | R169: 0.0385 | T169: 7
F170: =$M$15 -> -16 °C | G170: 0.039 | H170: 0.038 | I170: 0.037 | J170: 0.036 | K170: 0.035 | L170: 0.034 | M170: 0.033 | N170: 0.032 | O170: 0.031 | P170: 0.03 | Q170: 0.029 | R170: 0.035 | T170: 8
F171: =$M$16 -> -17 °C | G171: =AVERAGE(G170,G172) -> 0.039 | H171: =AVERAGE(H170,H172) -> 0.038 | I171: =AVERAGE(I170,I172) -> 0.037 | J171: =AVERAGE(J170,J172) -> 0.036 | K171: =AVERAGE(K170,K172) -> 0.035 | L171: =AVERAGE(L170,L172) -> 0.034 | M171: =AVERAGE(M170,M172) -> 0.033 | N171: =AVERAGE(N170,N172) -> 0.032 | O171: =AVERAGE(O170,O172) -> 0.031 | P171: =AVERAGE(P170,P172) -> 0.03 | Q171: =AVERAGE(Q170,Q172) -> 0.029 | R171: 0.035 | T171: 9
F172: =$M$17 -> -18 °C | G172: 0.039 | H172: 0.038 | I172: 0.037 | J172: 0.036 | K172: 0.035 | L172: 0.034 | M172: 0.033 | N172: 0.032 | O172: 0.031 | P172: 0.03 | Q172: 0.029 | R172: 0.035 | T172: 10
E173: 12 °C | F173: =$M$9 -> -10 °C | G173: 0.1524857143 | H173: 0.1479428571 | I173: 0.1434 | J173: 0.139 | K173: 0.134 | L173: 0.13 | M173: 0.125 | N173: 0.121 | O173: 0.116 | P173: 0.1116 | Q173: 0.1070571429 | R173: 0.134 | S173: =VLOOKUP($M$6,F173:S181,13,FALSE) -> 0.134 | T173: 11
F174: =$M$10 -> -11 °C | G174: =AVERAGE(G173,G175) -> 0.1374857143 | H174: =AVERAGE(H173,H175) -> 0.1334428571 | I174: =AVERAGE(I173,I175) -> 0.1294 | J174: =AVERAGE(J173,J175) -> 0.1255 | K174: =AVERAGE(K173,K175) -> 0.121 | L174: =AVERAGE(L173,L175) -> 0.1175 | M174: =AVERAGE(M173,M175) -> 0.113 | N174: =AVERAGE(N173,N175) -> 0.1095 | O174: =AVERAGE(O173,O175) -> 0.105 | P174: =AVERAGE(P173,P175) -> 0.1011 | Q174: =AVERAGE(Q173,Q175) -> 0.09705714286 | R174: 0.121 | T174: 12
F175: =$M$11 -> -12 °C | G175: 0.1224857143 | H175: 0.1189428571 | I175: 0.1154 | J175: 0.112 | K175: 0.108 | L175: 0.105 | M175: 0.101 | N175: 0.098 | O175: 0.094 | P175: 0.0906 | Q175: 0.08705714286 | R175: 0.108 | T175: 13
F176: =$M$12 -> -13 °C | G176: =AVERAGE(G175,G177) -> 0.1142428571 | H176: =AVERAGE(H175,H177) -> 0.1109714286 | I176: =AVERAGE(I175,I177) -> 0.1077 | J176: =AVERAGE(J175,J177) -> 0.1045 | K176: =AVERAGE(K175,K177) -> 0.101 | L176: =AVERAGE(L175,L177) -> 0.098 | M176: =AVERAGE(M175,M177) -> 0.0945 | N176: =AVERAGE(N175,N177) -> 0.0915 | O176: =AVERAGE(O175,O177) -> 0.088 | P176: =AVERAGE(P175,P177) -> 0.0848 | Q176: =AVERAGE(Q175,Q177) -> 0.08152857143 | R176: 0.101 | T176: 14
F177: =$M$13 -> -14 °C | G177: 0.106 | H177: 0.103 | I177: 0.1 | J177: 0.097 | K177: 0.094 | L177: 0.091 | M177: 0.088 | N177: 0.085 | O177: 0.082 | P177: 0.079 | Q177: 0.076 | R177: 0.094 | T177: 15
F178: =$M$14 -> -15 °C | G178: =AVERAGE(G177,G179) -> 0.09974285714 | H178: =AVERAGE(H177,H179) -> 0.09697142857 | I178: =AVERAGE(I177,I179) -> 0.0942 | J178: =AVERAGE(J177,J179) -> 0.0915 | K178: =AVERAGE(K177,K179) -> 0.0885 | L178: =AVERAGE(L177,L179) -> 0.086 | M178: =AVERAGE(M177,M179) -> 0.083 | N178: =AVERAGE(N177,N179) -> 0.0805 | O178: =AVERAGE(O177,O179) -> 0.0775 | P178: =AVERAGE(P177,P179) -> 0.0748 | Q178: =AVERAGE(Q177,Q179) -> 0.07202857143 | R178: 0.0885 | T178: 16
F179: =$M$15 -> -16 °C | G179: 0.09348571429 | H179: 0.09094285714 | I179: 0.0884 | J179: 0.086 | K179: 0.083 | L179: 0.081 | M179: 0.078 | N179: 0.076 | O179: 0.073 | P179: 0.0706 | Q179: 0.06805714286 | R179: 0.083 | T179: 17
F180: =$M$16 -> -17 °C | G180: =AVERAGE(G179,G181) -> 0.09348571429 | H180: =AVERAGE(H179,H181) -> 0.09094285714 | I180: =AVERAGE(I179,I181) -> 0.0884 | J180: =AVERAGE(J179,J181) -> 0.086 | K180: =AVERAGE(K179,K181) -> 0.083 | L180: =AVERAGE(L179,L181) -> 0.081 | M180: =AVERAGE(M179,M181) -> 0.078 | N180: =AVERAGE(N179,N181) -> 0.076 | O180: =AVERAGE(O179,O181) -> 0.073 | P180: =AVERAGE(P179,P181) -> 0.0706 | Q180: =AVERAGE(Q179,Q181) -> 0.06805714286 | R180: 0.083 | T180: 18
F181: =$M$17 -> -18 °C | G181: 0.09348571429 | H181: 0.09094285714 | I181: 0.0884 | J181: 0.086 | K181: 0.083 | L181: 0.081 | M181: 0.078 | N181: 0.076 | O181: 0.073 | P181: 0.0706 | Q181: 0.06805714286 | R181: 0.083 | T181: 19
E182: 15 °C | F182: =$M$9 -> -10 °C | G182: 0.2829142857 | H182: 0.2746571429 | I182: 0.2664 | J182: 0.258 | K182: 0.25 | L182: 0.242 | M182: 0.233 | N182: 0.225 | O182: 0.217 | P182: 0.2086 | Q182: 0.2003428571 | R182: 0.25 | S182: =VLOOKUP($M$6,F182:S190,13,FALSE) -> 0.25 | T182: 20
F183: =$M$10 -> -11 °C | G183: =AVERAGE(G182,G184) -> 0.2571904762 | H183: =AVERAGE(H182,H184) -> 0.2497619048 | I183: =AVERAGE(I182,I184) -> 0.2423333333 | J183: =AVERAGE(J182,J184) -> 0.235 | K183: =AVERAGE(K182,K184) -> 0.2275 | L183: =AVERAGE(L182,L184) -> 0.22 | M183: =AVERAGE(M182,M184) -> 0.2125 | N183: =AVERAGE(N182,N184) -> 0.205 | O183: =AVERAGE(O182,O184) -> 0.198 | P183: =AVERAGE(P182,P184) -> 0.1903333333 | Q183: =AVERAGE(Q182,Q184) -> 0.1829047619 | R183: 0.2275 | T183: 21
F184: =$M$11 -> -12 °C | G184: 0.2314666667 | H184: 0.2248666667 | I184: 0.2182666667 | J184: 0.212 | K184: 0.205 | L184: 0.198 | M184: 0.192 | N184: 0.185 | O184: 0.179 | P184: 0.1720666667 | Q184: 0.1654666667 | R184: 0.205 | T184: 22
F185: =$M$12 -> -13 °C | G185: =AVERAGE(G184,G186) -> 0.2181285714 | H185: =AVERAGE(H184,H186) -> 0.2120142857 | I185: =AVERAGE(I184,I186) -> 0.2059 | J185: =AVERAGE(J184,J186) -> 0.2 | K185: =AVERAGE(K184,K186) -> 0.1935 | L185: =AVERAGE(L184,L186) -> 0.1875 | M185: =AVERAGE(M184,M186) -> 0.1815 | N185: =AVERAGE(N184,N186) -> 0.175 | O185: =AVERAGE(O184,O186) -> 0.1695 | P185: =AVERAGE(P184,P186) -> 0.1631 | Q185: =AVERAGE(Q184,Q186) -> 0.1569857143 | R185: 0.1935 | T185: 23
F186: =$M$13 -> -14 °C | G186: 0.2047904762 | H186: 0.1991619048 | I186: 0.1935333333 | J186: 0.188 | K186: 0.182 | L186: 0.177 | M186: 0.171 | N186: 0.165 | O186: 0.16 | P186: 0.1541333333 | Q186: 0.1485047619 | R186: 0.182 | T186: 24
F187: =$M$14 -> -15 °C | G187: =AVERAGE(G186,G188) -> 0.1967047619 | H187: =AVERAGE(H186,H188) -> 0.1913190476 | I187: =AVERAGE(I186,I188) -> 0.1859333333 | J187: =AVERAGE(J186,J188) -> 0.1805 | K187: =AVERAGE(K186,K188) -> 0.175 | L187: =AVERAGE(L186,L188) -> 0.17 | M187: =AVERAGE(M186,M188) -> 0.1645 | N187: =AVERAGE(N186,N188) -> 0.159 | O187: =AVERAGE(O186,O188) -> 0.1535 | P187: =AVERAGE(P186,P188) -> 0.1482333333 | Q187: =AVERAGE(Q186,Q188) -> 0.142847619 | R187: 0.175 | T187: 25
F188: =$M$15 -> -16 °C | G188: 0.1886190476 | H188: 0.1834761905 | I188: 0.1783333333 | J188: 0.173 | K188: 0.168 | L188: 0.163 | M188: 0.158 | N188: 0.153 | O188: 0.147 | P188: 0.1423333333 | Q188: 0.1371904762 | R188: 0.168 | T188: 26
F189: =$M$16 -> -17 °C | G189: =AVERAGE(G188,G190) -> 0.1886190476 | H189: =AVERAGE(H188,H190) -> 0.1834761905 | I189: =AVERAGE(I188,I190) -> 0.1783333333 | J189: =AVERAGE(J188,J190) -> 0.173 | K189: =AVERAGE(K188,K190) -> 0.168 | L189: =AVERAGE(L188,L190) -> 0.163 | M189: =AVERAGE(M188,M190) -> 0.158 | N189: =AVERAGE(N188,N190) -> 0.153 | O189: =AVERAGE(O188,O190) -> 0.147 | P189: =AVERAGE(P188,P190) -> 0.1423333333 | Q189: =AVERAGE(Q188,Q190) -> 0.1371904762 | R189: 0.168 | T189: 27
F190: =$M$17 -> -18 °C | G190: 0.1886190476 | H190: 0.1834761905 | I190: 0.1783333333 | J190: 0.173 | K190: 0.168 | L190: 0.163 | M190: 0.158 | N190: 0.153 | O190: 0.147 | P190: 0.1423333333 | Q190: 0.1371904762 | R190: 0.168 | T190: 28
E206: JAZ Sole-Wasser - Korrekturfaktor Verdampfer
E207: Temp. Sole | G207: 15 | H207: 20 | I207: 25 | J207: 30 | K207: 35 | L207: 40 | M207: 45 | N207: 50 | O207: 55 | P207: 60 | Q207: 65 | R207: Bei Vorlauftemp.
E208: -6 | G208: 1.210966455 | H208: 1.161371376 | I208: 1.111776296 | J208: 1.060505556 | K208: 1.012505556 | L208: 0.9636888889 | M208: 0.9167388889 | N208: 0.8637222222 | O208: 0.812 | P208: 0.7646107407 | Q208: 0.7150156614 | R208: =HLOOKUP(FLOOR($X$6,5),$G$207:$Q$234,S208,FALSE)-($X$6-FLOOR($X$6,5))*((HLOOKUP(FLOOR($X$6,5),$G$207:$Q$234,S208,FALSE)-HLOOKUP(FLOOR($X$6,5)+5,$G$207:$Q$234,S208,FALSE))/5) -> 1.012505556 | S208: 2
E209: -5 | G209: 1.223019471 | H209: 1.173533439 | I209: 1.124047407 | J209: 1.072988889 | K209: 1.024988889 | L209: 0.9762888889 | M209: 0.9291888889 | N209: 0.8765555556 | O209: 0.8250666667 | P209: 0.7776451852 | Q209: 0.7281591534 | R209: 1.024988889 | S209: 3
E210: -4 | G210: 1.235051852 | H210: 1.18567963 | I210: 1.136307407 | J210: 1.085472222 | K210: 1.037472222 | L210: 0.9888888889 | M210: 0.9416388889 | N210: 0.8893888889 | O210: 0.8381666667 | P210: 0.7907018519 | Q210: 0.7413296296 | R210: 1.037472222 | S210: 4
E211: -3 | G211: 1.248209524 | H211: 1.198838095 | I211: 1.149466667 | J211: 1.099 | K211: 1.051 | L211: 1.002 | M211: 0.953 | N211: 0.903 | O211: 0.852 | P211: 0.8038666667 | Q211: 0.7544952381 | R211: 1.051 | S211: 5
E212: -2 | G212: 1.258619048 | H212: 1.20947619 | I212: 1.160333333 | J212: 1.11 | K212: 1.062 | L212: 1.014 | M212: 0.965 | N212: 0.915 | O212: 0.864 | P212: 0.8163333333 | Q212: 0.7671904762 | R212: 1.062 | S212: 6
E213: -1 | G213: 1.27 | H213: 1.221 | I213: 1.172 | J213: 1.122 | K213: 1.074 | L213: 1.026 | M213: 0.977 | N213: 0.927 | O213: 0.877 | P213: 0.829 | Q213: 0.78 | R213: 1.074 | S213: 7
E214: 0 | G214: 1.283 | H214: 1.234 | I214: 1.185 | J214: 1.135 | K214: 1.087 | L214: 1.039 | M214: 0.99 | N214: 0.94 | O214: 0.89 | P214: 0.842 | Q214: 0.793 | R214: 1.087 | S214: 8
E215: 1 | G215: 1.29507619 | H215: 1.246304762 | I215: 1.197533333 | J215: 1.148 | K215: 1.1 | L215: 1.052 | M215: 1.003 | N215: 0.954 | O215: 0.904 | P215: 0.8561333333 | Q215: 0.8073619048 | R215: 1.1 | S215: 9
E216: 2 | G216: 1.30807619 | H216: 1.259304762 | I216: 1.210533333 | J216: 1.161 | K216: 1.113 | L216: 1.065 | M216: 1.016 | N216: 0.967 | O216: 0.917 | P216: 0.8691333333 | Q216: 0.8203619048 | R216: 1.113 | S216: 10
E217: 3 | G217: 1.319457143 | H217: 1.270828571 | I217: 1.2222 | J217: 1.173 | K217: 1.125 | L217: 1.077 | M217: 1.028 | N217: 0.979 | O217: 0.93 | P217: 0.8818 | Q217: 0.8331714286 | R217: 1.125 | S217: 11
E218: 4 | G218: 1.330866667 | H218: 1.282466667 | I218: 1.234066667 | J218: 1.185 | K218: 1.137 | L218: 1.09 | M218: 1.041 | N218: 0.992 | O218: 0.943 | P218: 0.8952666667 | Q218: 0.8468666667 | R218: 1.137 | S218: 12
E219: 5 | G219: 1.343533333 | H219: 1.295133333 | I219: 1.246733333 | J219: 1.198 | K219: 1.15 | L219: 1.102 | M219: 1.053 | N219: 1.005 | O219: 0.956 | P219: 0.9079333333 | Q219: 0.8595333333 | R219: 1.15 | S219: 13
E220: 6 | G220: 1.35537001 | H220: 1.307107816 | I220: 1.258845623 | J220: 1.210305556 | K220: 1.162305556 | L220: 1.114888889 | M220: 1.065184343 | N220: 1.017722222 | O220: 0.9691611111 | P220: 0.9210102694 | Q220: 0.872748076 | R220: 1.162305556 | S220: 14
E221: 7 | G221: 1.367402885 | H221: 1.319253418 | I221: 1.271103952 | J221: 1.222788889 | K221: 1.174788889 | L221: 1.127488889 | M221: 1.077602875 | N221: 1.030555556 | O221: 0.9822598291 | P221: 0.9340576897 | Q221: 0.8859082236 | R221: 1.174788889 | S221: 15
E222: 8 | G222: 1.379435759 | H222: 1.331399021 | I222: 1.283362282 | J222: 1.235272222 | K222: 1.187272222 | L222: 1.140088889 | M222: 1.090021406 | N222: 1.043388889 | O222: 0.995358547 | P222: 0.9471051101 | Q222: 0.8990683713 | R222: 1.187272222 | S222: 16
E223: 9 | G223: 1.391468634 | H223: 1.343544623 | I223: 1.295620611 | J223: 1.247755556 | K223: 1.199755556 | L223: 1.152688889 | M223: 1.102439938 | N223: 1.056222222 | O223: 1.008457265 | P223: 0.9601525304 | Q223: 0.9122285189 | R223: 1.199755556 | S223: 17
E224: 10 | G224: 1.403501509 | H224: 1.355690225 | I224: 1.307878941 | J224: 1.260238889 | K224: 1.212238889 | L224: 1.165288889 | M224: 1.114858469 | N224: 1.069055556 | O224: 1.021555983 | P224: 0.9731999508 | Q224: 0.9253886665 | R224: 1.212238889 | S224: 18
E225: 11 | G225: 1.415534384 | H225: 1.367835827 | I225: 1.32013727 | J225: 1.272722222 | K225: 1.224722222 | L225: 1.177888889 | M225: 1.127277001 | N225: 1.081888889 | O225: 1.034654701 | P225: 0.9862473711 | Q225: 0.9385488141 | R225: 1.224722222 | S225: 19
E226: 12 | G226: 1.427567259 | H226: 1.379981429 | I226: 1.3323956 | J226: 1.285205556 | K226: 1.237205556 | L226: 1.190488889 | M226: 1.139695532 | N226: 1.094722222 | O226: 1.047753419 | P226: 0.9992947915 | Q226: 0.9517089618 | R226: 1.237205556 | S226: 20
E227: 13 | G227: 1.439600134 | H227: 1.392127031 | I227: 1.344653929 | J227: 1.297688889 | K227: 1.249688889 | L227: 1.203088889 | M227: 1.152114064 | N227: 1.107555556 | O227: 1.060852137 | P227: 1.012342212 | Q227: 0.9648691094 | R227: 1.249688889 | S227: 21
E228: 14 | G228: 1.451633009 | H228: 1.404272634 | I228: 1.356912258 | J228: 1.310172222 | K228: 1.262172222 | L228: 1.215688889 | M228: 1.164532595 | N228: 1.120388889 | O228: 1.073950855 | P228: 1.025389632 | Q228: 0.978029257 | R228: 1.262172222 | S228: 22
E229: 15 | G229: 1.463665884 | H229: 1.416418236 | I229: 1.369170588 | J229: 1.322655556 | K229: 1.274655556 | L229: 1.228288889 | M229: 1.176951127 | N229: 1.133222222 | O229: 1.087049573 | P229: 1.038437053 | Q229: 0.9911894047 | R229: 1.274655556 | S229: 23
E230: 16 | G230: 1.475698759 | H230: 1.428563838 | I230: 1.381428917 | J230: 1.335138889 | K230: 1.287138889 | L230: 1.240888889 | M230: 1.189369658 | N230: 1.146055556 | O230: 1.100148291 | P230: 1.051484473 | Q230: 1.004349552 | R230: 1.287138889 | S230: 24
E231: 17 | G231: 1.487731634 | H231: 1.44070944 | I231: 1.393687247 | J231: 1.347622222 | K231: 1.299622222 | L231: 1.253488889 | M231: 1.20178819 | N231: 1.158888889 | O231: 1.113247009 | P231: 1.064531893 | Q231: 1.0175097 | R231: 1.299622222 | S231: 25
E232: 18 | G232: 1.499764508 | H232: 1.452855042 | I232: 1.405945576 | J232: 1.360105556 | K232: 1.312105556 | L232: 1.266088889 | M232: 1.214206721 | N232: 1.171722222 | O232: 1.126345726 | P232: 1.077579314 | Q232: 1.030669848 | R232: 1.312105556 | S232: 26
E233: 19 | G233: 1.511797383 | H233: 1.465000645 | I233: 1.418203906 | J233: 1.372588889 | K233: 1.324588889 | L233: 1.278688889 | M233: 1.226625253 | N233: 1.184555556 | O233: 1.139444444 | P233: 1.090626734 | Q233: 1.043829995 | R233: 1.324588889 | S233: 27
E234: 20 | G234: 1.523830258 | H234: 1.477146247 | I234: 1.430462235 | J234: 1.385072222 | K234: 1.337072222 | L234: 1.291288889 | M234: 1.239043784 | N234: 1.197388889 | O234: 1.152543162 | P234: 1.103674154 | Q234: 1.056990143 | R234: 1.337072222 | S234: 28
E252: JAZ Wasser-Wasser - Korrekturfaktor Verdampfer
E253: Temp. Wasser | G253: 15 | H253: 20 | I253: 25 | J253: 30 | K253: 35 | L253: 40 | M253: 45 | N253: 50 | O253: 55 | P253: 60 | Q253: 65 | R253: Bei Vorlauftemp.
E254: 2 | G254: 1.131981818 | H254: 1.077981818 | I254: 1.023981818 | J254: 0.968 | K254: 0.916 | L254: 0.864 | M254: 0.81 | N254: 0.7537272727 | O254: 0.6981636364 | P254: 0.6459818182 | Q254: 0.5919818182 | R254: =HLOOKUP(FLOOR($X$6,5),$G$253:$Q$272,2,FALSE)-($X$6-FLOOR($X$6,5))*((HLOOKUP(FLOOR($X$6,5),$G$253:$Q$272,2,FALSE)-HLOOKUP(FLOOR($X$6,5)+5,$G$253:$Q$272,2,FALSE))/5) -> 0.916
E255: 3 | G255: 1.150637229 | H255: 1.096721645 | I255: 1.042806061 | J255: 0.987 | K255: 0.935 | L255: 0.883 | M255: 0.829 | N255: 0.7730454545 | O255: 0.7175636364 | P255: 0.6653969697 | Q255: 0.6114813853 | R255: =HLOOKUP(FLOOR($X$6,5),$G$253:$Q$272,3,FALSE)-($X$6-FLOOR($X$6,5))*((HLOOKUP(FLOOR($X$6,5),$G$253:$Q$272,3,FALSE)-HLOOKUP(FLOOR($X$6,5)+5,$G$253:$Q$272,3,FALSE))/5) -> 0.935
E256: 4 | G256: 1.169292641 | H256: 1.115461472 | I256: 1.061630303 | J256: 1.006 | K256: 0.954 | L256: 0.902 | M256: 0.848 | N256: 0.7923636364 | O256: 0.7369636364 | P256: 0.6848121212 | Q256: 0.6309809524 | R256: =HLOOKUP(FLOOR($X$6,5),$G$253:$Q$272,4,FALSE)-($X$6-FLOOR($X$6,5))*((HLOOKUP(FLOOR($X$6,5),$G$253:$Q$272,4,FALSE)-HLOOKUP(FLOOR($X$6,5)+5,$G$253:$Q$272,4,FALSE))/5) -> 0.954
E257: 5 | G257: 1.18807619 | H257: 1.134304762 | I257: 1.080533333 | J257: 1.025 | K257: 0.973 | L257: 0.921 | M257: 0.867 | N257: 0.812 | O257: 0.756 | P257: 0.7041333333 | Q257: 0.6503619048 | R257: =HLOOKUP(FLOOR($X$6,5),$G$253:$Q$272,5,FALSE)-($X$6-FLOOR($X$6,5))*((HLOOKUP(FLOOR($X$6,5),$G$253:$Q$272,5,FALSE)-HLOOKUP(FLOOR($X$6,5)+5,$G$253:$Q$272,5,FALSE))/5) -> 0.973
E258: 6 | G258: 1.206457143 | H258: 1.152828571 | I258: 1.0992 | J258: 1.044 | K258: 0.992 | L258: 0.94 | M258: 0.886 | N258: 0.831 | O258: 0.776 | P258: 0.7238 | Q258: 0.6701714286 | R258: =HLOOKUP(FLOOR($X$6,5),$G$253:$Q$272,6,FALSE)-($X$6-FLOOR($X$6,5))*((HLOOKUP(FLOOR($X$6,5),$G$253:$Q$272,6,FALSE)-HLOOKUP(FLOOR($X$6,5)+5,$G$253:$Q$272,6,FALSE))/5) -> 0.992
E259: 7 | G259: 1.225457143 | H259: 1.171828571 | I259: 1.1182 | J259: 1.063 | K259: 1.011 | L259: 0.959 | M259: 0.905 | N259: 0.85 | O259: 0.795 | P259: 0.7428 | Q259: 0.6891714286 | R259: =HLOOKUP(FLOOR($X$6,5),$G$253:$Q$272,7,FALSE)-($X$6-FLOOR($X$6,5))*((HLOOKUP(FLOOR($X$6,5),$G$253:$Q$272,7,FALSE)-HLOOKUP(FLOOR($X$6,5)+5,$G$253:$Q$272,7,FALSE))/5) -> 1.011
E260: 8 | G260: 1.243533333 | H260: 1.190133333 | I260: 1.136733333 | J260: 1.082 | K260: 1.03 | L260: 0.978 | M260: 0.924 | N260: 0.87 | O260: 0.815 | P260: 0.7629333333 | Q260: 0.7095333333 | R260: =HLOOKUP(FLOOR($X$6,5),$G$253:$Q$272,8,FALSE)-($X$6-FLOOR($X$6,5))*((HLOOKUP(FLOOR($X$6,5),$G$253:$Q$272,8,FALSE)-HLOOKUP(FLOOR($X$6,5)+5,$G$253:$Q$272,8,FALSE))/5) -> 1.03
E261: 9 | G261: 1.262533333 | H261: 1.209133333 | I261: 1.155733333 | J261: 1.101 | K261: 1.049 | L261: 0.997 | M261: 0.943 | N261: 0.889 | O261: 0.834 | P261: 0.7819333333 | Q261: 0.7285333333 | R261: =HLOOKUP(FLOOR($X$6,5),$G$253:$Q$272,9,FALSE)-($X$6-FLOOR($X$6,5))*((HLOOKUP(FLOOR($X$6,5),$G$253:$Q$272,9,FALSE)-HLOOKUP(FLOOR($X$6,5)+5,$G$253:$Q$272,9,FALSE))/5) -> 1.049
E262: 10 | G262: 1.281533333 | H262: 1.228133333 | I262: 1.174733333 | J262: 1.12 | K262: 1.068 | L262: 1.016 | M262: 0.962 | N262: 0.908 | O262: 0.853 | P262: 0.8009333333 | Q262: 0.7475333333 | R262: =HLOOKUP(FLOOR($X$6,5),$G$253:$Q$272,10,FALSE)-($X$6-FLOOR($X$6,5))*((HLOOKUP(FLOOR($X$6,5),$G$253:$Q$272,10,FALSE)-HLOOKUP(FLOOR($X$6,5)+5,$G$253:$Q$272,10,FALSE))/5) -> 1.068
E263: 11 | G263: 1.299914286 | H263: 1.246657143 | I263: 1.1934 | J263: 1.139 | K263: 1.087 | L263: 1.035 | M263: 0.981 | N263: 0.927 | O263: 0.873 | P263: 0.8206 | Q263: 0.7673428571 | R263: =HLOOKUP(FLOOR($X$6,5),$G$253:$Q$272,11,FALSE)-($X$6-FLOOR($X$6,5))*((HLOOKUP(FLOOR($X$6,5),$G$253:$Q$272,11,FALSE)-HLOOKUP(FLOOR($X$6,5)+5,$G$253:$Q$272,11,FALSE))/5) -> 1.087
E264: 12 | G264: 1.318609524 | H264: 1.265438095 | I264: 1.212266667 | J264: 1.158 | K264: 1.106 | L264: 1.054 | M264: 1 | N264: 0.947 | O264: 0.892 | P264: 0.8400666667 | Q264: 0.7868952381 | R264: =HLOOKUP(FLOOR($X$6,5),$G$253:$Q$272,12,FALSE)-($X$6-FLOOR($X$6,5))*((HLOOKUP(FLOOR($X$6,5),$G$253:$Q$272,12,FALSE)-HLOOKUP(FLOOR($X$6,5)+5,$G$253:$Q$272,12,FALSE))/5) -> 1.106
E265: 13 | G265: 1.336990476 | H265: 1.283961905 | I265: 1.230933333 | J265: 1.177 | K265: 1.125 | L265: 1.073 | M265: 1.019 | N265: 0.966 | O265: 0.912 | P265: 0.8597333333 | Q265: 0.8067047619 | R265: =HLOOKUP(FLOOR($X$6,5),$G$253:$Q$272,13,FALSE)-($X$6-FLOOR($X$6,5))*((HLOOKUP(FLOOR($X$6,5),$G$253:$Q$272,13,FALSE)-HLOOKUP(FLOOR($X$6,5)+5,$G$253:$Q$272,13,FALSE))/5) -> 1.125
... 18 more rows

Sheet Leistungsdaten (hidden)
A1: Luft-Wasser-Wärmepumpen
A2: WP-Typ | B2: DT | C2: Leistungszahl | D2: Leistungszahl | E2: Leistungszahl
B3: Prüfstand | C3: A-7 / W35 | D3: A2 / W35 | E3: A10 / W35
A4: =Translation!A55 -> Luft-Wasser-WP (Manuell) | B4: ='Manuelle Eingabe'!D6 -> 5 | C4: ='Manuelle Eingabe'!D8 -> 2.7 | D4: ='Manuelle Eingabe'!D10 -> 3.5 | E4: ='Manuelle Eingabe'!D12 -> 4
A5: WPL 15 ACS | B5: 5 | C5: 2.83 | D5: 3.88 | E5: 4.83
A6: WPL 20 AC | B6: 5 | C6: 3.38 | D6: 3.99 | E6: 4.91
A7: WPL 25 AC | B7: 5 | C7: 2.93 | D7: 4.17 | E7: 5.16
A8: WPL 15 AS | B8: 5 | C8: 2.83 | D8: 3.88 | E8: 4.83
A9: WPL 20 A | B9: 5 | C9: 3.38 | D9: 3.99 | E9: 4.91
A10: WPL 25 A | B10: 5 | C10: 2.93 | D10: 4.17 | E10: 5.16
A11: WPL 15 IS-2 | B11: 5 | C11: 2.92 | D11: 4.01 | E11: 5.35
A12: WPL 25 I-2 | B12: 5 | C12: 3.05 | D12: 3.89 | E12: 5.28
A13: WPL 15 IKS-2 | B13: 5 | C13: 2.92 | D13: 4.01 | E13: 5.35
A14: WPL 25 IK-2 | B14: 5 | C14: 3.05 | D14: 3.89 | E14: 5.28
A15: WPL 08 S trend | B15: 5 | C15: 2.89 | D15: 3.89 | E15: 4.87
A16: WPL 12 S trend | B16: 5 | C16: 2.82 | D16: 4.13 | E16: 5.14
A17: WPL 16 S trend | B17: 5 | C17: 2.95 | D17: 4.29 | E17: 5.18
A18: WPL 22 trend | B18: 5 | C18: 2.85 | D18: 4.05 | E18: 5.2
A19: WPL 28 trend | B19: 5 | C19: 2.55 | D19: 4.03 | E19: 5.12
A20: WPL 10 AC | B20: 5 | C20: 3.06 | D20: 3.51 | E20: 4.16
A21: WPL 10 I | B21: 5 | C21: 2.94 | D21: 3.27 | E21: 4.08
A22: WPL 10 IK | B22: 5 | C22: 2.94 | D22: 3.27 | E22: 4.08
A23: WPL 13 E | B23: 5 | C23: 3.2 | D23: 3.76 | E23: 4.65
A24: WPL 18 E | B24: 5 | C24: 3.3 | D24: 3.7 | E24: 4.6
A25: WPL 23 E | B25: 5 | C25: 3.1 | D25: 3.6 | E25: 4.4
A26: WPL 13 cool | B26: 5 | C26: 3 | D26: 3.4 | E26: 4.3
A27: WPL 18 cool | B27: 5 | C27: 3.2 | D27: 3.7 | E27: 4.6
A28: WPL 23 cool | B28: 5 | C28: 3.02 | D28: 3.48 | E28: 4.34
A29: WPL 33 HT | B29: 5 | C29: 2.46 | D29: 3.45 | E29: 4.84
A30: WPL 34 | B30: 5 | C30: 2.78 | D30: 3.14 | E30: 3.94
A31: WPL 47 | B31: 5 | C31: 3.05 | D31: 3.43 | E31: 4.24
A32: WPL 57 | B32: 5 | C32: 2.84 | D32: 3.3 | E32: 3.89
A33: WPL 44 AC | B33: 5 | C33: 3.5 | D33: 4.2 | E33: 4.9
A34: WPL 60 AC | B34: 5 | C34: 3.4 | D34: 4.1 | E34: 4.9
A35: WPL 130 AC | B35: 5 | C35: 2.96 | D35: 3.26 | E35: 4.05
A36: LWZ 504 | B36: 5 | C36: 2.61 | D36: 3.74 | E36: 4.95
A37: LWZ 304 SOL | B37: 5 | C37: 2.72 | D37: 3.4 | E37: 4.14
A38: LWZ 404 SOL | B38: 5 | C38: 2.82 | D38: 3.46 | E38: 4.19
A39: LWZ 304 Trend | B39: 5 | C39: 2.72 | D39: 3.4 | E39: 4.14
A40: LWZ 404 Trend | B40: 5 | C40: 2.82 | D40: 3.46 | E40: 4.19
A41: LWZ 304 flex | B41: 5 | C41: 2.72 | D41: 3.4 | E41: 4.14
A42: LWZ 404 flex | B42: 5 | C42: 2.82 | D42: 3.46 | E42: 4.19
A43: LWZ smart | B43: 5 | C43: 2.82 | D43: 3.46 | E43: 4.19
A44: LWA 403 | B44: 5 | C44: 2.7 | D44: 3.1 | E44: 3.7
A45: LWZ 504 mit WRG | B45: 5 | C45: 3.09 | D45: 4.4 | E45: 5.21
A46: LWZ 304 SOL mit WRG | B46: 5 | C46: 4.06 | D46: 4.14 | E46: 4.38
A47: LWZ 404 SOL mit WRG | B47: 5 | C47: 3.74 | D47: 3.98 | E47: 4.36
A48: LWZ 304 Trend mit WRG | B48: 5 | C48: 4.06 | D48: 4.14 | E48: 4.38
A49: LWZ 404 Trend mit WRG | B49: 5 | C49: 3.74 | D49: 3.98 | E49: 4.36
A50: LWZ 304 Flex mit WRG | B50: 5 | C50: 4.06 | D50: 4.14 | E50: 4.38
A51: LWZ 404 Flex mit WRG | B51: 5 | C51: 3.74 | D51: 3.98 | E51: 4.36
A52: LWA 403 mit Abluft | B52: 5 | C52: 2.8 | D52: 3.2 | E52: 3.7
A53: WPL 33 | B53: 5 | C53: 2.6 | D53: 3.26 | E53: 4.1
M54: LWZ 304 Trend mit WRG | N54: 5 | O54: 4.06 | P54: 4.14 | Q54: 4.38
M55: LWZ 404 Trend mit WRG | N55: 5 | O55: 3.74 | P55: 3.98 | Q55: 4.36
M56: LWA 403 mit Abluft | N56: 5 | O56: 2.8 | P56: 3.2 | Q56: 3.7
A101: beim Hinzufügen neuer Maschinen ListFillrange (Eingabewerte>>Comboboxen WP>>ListFillRange WP) entsprechend anpassen & bei Leistungskurven Tabelle mit Heizleistungen an entsprechender Stelle einfügen
A103: Sole-Wasser-Wärmepumpen (Achtung bei neuen Sole-Wasser-WP Blatt Solepumpe anpassen !!!)
A104: WP-Typ | B104: DT | C104: Leistungszahl | D104: Leistungsaufnahme | E104: Heizleistung
B105: Prüfstand | C105: B0/W35 | D105: Bo/W35 | E105: B10/W35
A106: =Translation!A56 -> Sole-Wasser-WP (Manuell) | B106: ='Manuelle Eingabe'!D16 -> 5 | C106: ='Manuelle Eingabe'!D18 -> 4.5 | D106: ='Manuelle Eingabe'!D20 -> 4 | E106: ='Manuelle Eingabe'!D22 -> 20
A107: WPC 04 | B107: 5 | C107: 4.52 | D107: 1.056 | E107: 6.22
A108: WPC 05 | B108: 5 | C108: 4.79 | D108: 1.214 | E108: 7.26
A109: WPC 07 | B109: 5 | C109: 4.85 | D109: 1.545 | E109: 9.67
A110: WPC 10 | B110: 5 | C110: 5.02 | D110: 2.055 | E110: 13.12
A111: WPC 13 | B111: 5 | C111: 4.83 | D111: 2.736 | E111: 16.9
A112: WPC 04 cool | B112: 5 | C112: 4.52 | D112: 1.056 | E112: 6.22
A113: WPC 05 cool | B113: 5 | C113: 4.79 | D113: 1.214 | E113: 7.26
A114: WPC 07 cool | B114: 5 | C114: 4.85 | D114: 1.545 | E114: 9.67
A115: WPC 10 cool | B115: 5 | C115: 5.02 | D115: 2.055 | E115: 13.12
A116: WPC 13 cool | B116: 5 | C116: 4.83 | D116: 2.736 | E116: 16.9
A117: WPF 04 | B117: 5 | C117: 4.52 | D117: 1.056 | E117: 6.22
A118: WPF 05 | B118: 5 | C118: 4.79 | D118: 1.214 | E118: 7.26
A119: WPF 07 | B119: 5 | C119: 4.85 | D119: 1.545 | E119: 9.67
A120: WPF 10 | B120: 5 | C120: 5.02 | D120: 2.055 | E120: 13.12
A121: WPF 13 | B121: 5 | C121: 4.83 | D121: 2.736 | E121: 16.9
A122: WPF 16 | B122: 5 | C122: 4.54 | D122: 3.748 | E122: 21.68
A123: WPF 04 cool | B123: 5 | C123: 4.52 | D123: 1.056 | E123: 6.22
A124: WPF 05 cool | B124: 5 | C124: 4.79 | D124: 1.214 | E124: 7.26
A125: WPF 07 cool | B125: 5 | C125: 4.85 | D125: 1.545 | E125: 9.67
A126: WPF 10 cool | B126: 5 | C126: 5.02 | D126: 2.055 | E126: 13.12
A127: WPF 13 cool | B127: 5 | C127: 4.83 | D127: 2.736 | E127: 16.9
A128: WPF 16 cool | B128: 5 | C128: 4.54 | D128: 3.748 | E128: 21.68
A129: WPF 5 basic | B129: 5 | C129: 4.33 | D129: 1.36 | E129: 7.2
A130: WPF 7 basic | B130: 5 | C130: 4.5 | D130: 1.7 | E130: 10
A131: WPF 10 basic | B131: 5 | C131: 4.37 | D131: 2.22 | E131: 12.5
A132: WPF 13 basic | B132: 5 | C132: 4.42 | D132: 2.85 | E132: 17.1
A133: WPF 16 basic | B133: 5 | C133: 4.16 | D133: 4 | E133: 20.9
A134: WPF 10 M | B134: 5 | C134: 4.49 | D134: 2.22 | E134: 12.5
A135: WPF 13 M | B135: 5 | C135: 4.57 | D135: 2.82 | E135: 17.1
A136: WPF 16 M | B136: 5 | C136: 4.35 | D136: 3.5 | E136: 21.7
A137: WPF 20 | B137: 5 | C137: 4.66 | D137: 4.5 | E137: 27.9
A138: WPF 27 | B138: 5 | C138: 4.85 | D138: 6.1 | E138: 37.83
A139: WPF 27 HT | B139: 5 | C139: 4.34 | D139: 6.1 | E139: 35.3
A140: WPF 35 | B140: 5 | C140: 4.72 | D140: 7.98 | E140: 49.03
A141: WPF 40 | B141: 5 | C141: 4.67 | D141: 9.1 | E141: 55.3
A142: WPF 52 | B142: 5 | C142: 4.81 | D142: 11.6 | E142: 71.57
A143: WPF 66 | B143: 5 | C143: 4.56 | D143: 14.2 | E143: 86.7
A144: WPF 20 SET | B144: 5 | C144: 4.49 | D144: 4.44 | E144: 25
A145: WPF 23 SET | B145: 5 | C145: 4.53 | D145: 5.04 | E145: 29.6
A146: WPF 26 SET | B146: 5 | C146: 4.57 | D146: 5.64 | E146: 34.2
A147: WPF 29 SET | B147: 5 | C147: 4.46 | D147: 6.32 | E147: 38.8
A148: WPF 32 SET | B148: 5 | C148: 4.35 | D148: 7 | E148: 43.4
A201: beim Hinzufügen neuer Maschinen ListFillrange (Eingabewerte>>Comboboxen WP>>ListFillRange WP) entsprechend anpassen & bei Leistungskurven Tabelle mit Heizleistungen an entsprechender Stelle einfügen
A203: Wasser-Wasser-Wärmepumpen
A204: WP-Typ | B204: DT | C204: Leistungszahl | D204: Leistungsaufnahme | E204: Heizleistung
B205: Prüfstand | C205: W10/W35 | D205: W10/W35 | E205: W10/W35 [KW]
A206: =Translation!A54 -> Wasser-Wasser-WP (Manuell) | B206: ='Manuelle Eingabe'!D26 -> 5 | C206: ='Manuelle Eingabe'!D28 -> 5 | D206: ='Manuelle Eingabe'!D30 -> 3 | E206: ='Manuelle Eingabe'!D32 -> 15
A251: beim Hinzufügen neuer Maschinen ListFillrange (Eingabewerte>>Comboboxen WP>>ListFillRange WP) entsprechend anpassen & bei Leistungskurven Tabelle mit Heizleistungen an entsprechender Stelle einfügen
A253: Warmwasser-Wärmepumpen
A254: WP-Typ | B254: Leistungszahl | C254: Temperatur | D254: Faktor | E254: Faktor F2
B255: W15/W50 | C255: Prüfstand | D255: F1 | E255: Kellerluft=0,9; Abluft = 1
A256: =Translation!A57 -> Warmwasser-WP (Manuell) | B256: ='Manuelle Eingabe'!D36 -> 5 | C256: ='Manuelle Eingabe'!D38 -> 55 | D256: =IF(C256="","",0.01*C256+0.5) -> 1.05 | E256: =IF('Manuelle Eingabe'!D40='Manuelle Eingabe'!J38,0.9,1) -> 0.9
A257: WWK 220 electronic | B257: 3.42 | C257: 55 | D257: =IF(C257="","",0.01*C257+0.5) -> 1.05 | E257: 0.9
A258: WWK 300 electronic | B258: 3.82 | C258: 55 | D258: 1.05 | E258: 0.9
A259: WWK 300 electronic SOL | B259: 3.82 | C259: 55 | D259: 1.05 | E259: 0.9
A260: WWK 221 electronic | B260: 3.4 | C260: 55 | D260: 1.05 | E260: 0.9
A261: WWK 301 electronic | B261: 3.8 | C261: 55 | D261: 1.05 | E261: 0.9
A262: WWK 301 electronic SOL | B262: 3.8 | C262: 55 | D262: 1.05 | E262: 0.9
A263: WWS 20 | B263: 3.8 | C263: 55 | D263: 1.05 | E263: 0.9
A264: LWA 252 | B264: 4.2 | C264: 55 | D264: 1.05 | E264: 1
A265: LWA 100 | B265: 2.8 | C265: 55 | D265: 1.05 | E265: 1

Sheet Klimadaten (hidden)
A2: Norm-Außentemperaturen Deutschland | E2: Norm-Außentemperaturen Österreich
A3: 72280 | B3: Aach | C3: -16 °C | D3: die eine | E3: 9913 | F3: Abfaltersbach | G3: -17 °C
A4: 78267 | B4: Aach/Hegau | C4: -14 °C | D4: Stadt bei | E4: 3462 | F4: Absdorf | G4: -13 °C
A5: 520xx | B5: Aachen | C5: -12 °C | D5: Aktualisierung | E5: 5441 | F5: Abtenau | G5: -16 °C
A6: 7343x | B6: Aalen / Württ. | C6: -16 °C | D6: manuell | E6: 5122 | F6: Ach | G6: -15 °C
A7: 65326 | B7: Aarbergen | C7: -14 °C | D7: hinzufügen!! | E7: 2481 | F7: Achau | G7: -13 °C
A8: 19322 | B8: Abbendorf | C8: -14 °C | E8: 6215 | F8: Achenkirch | G8: -17 °C
A9: 30900 | B9: Abbensen | C9: -14 °C | E9: 4541 | F9: Adlwang | G9: -14 °C
A10: 31234 | B10: Abbensen | C10: -14 °C | E10: 8911 | F10: Admont | G10: -17 °C
A11: 93326 | B11: Abensberg | C11: -18 °C | E11: 5421 | F11: Adnet | G11: -15 °C
A12: 8485 | B12: Abhorn | C12: -16 °C | E12: 8623 | F12: Aflenz Kurort | G12: -15 °C
A13: 37290 | B13: Abterode | C13: -16 °C | E13: 9542 | F13: Afritz | G13: -15 °C
A14: 4347 | B14: Abtnaundorf | C14: -14 °C | E14: 3642 | F14: Aggsbach Dorf | G14: -13 °C
A15: 94261 | B15: Abtschlag | C15: -18 °C | E15: 3641 | F15: Aggsbach Markt | G15: -13 °C
A16: 73453 | B16: Abtsgmünd | C16: -16 °C | E16: 8966 | F16: Aich (im Ennstal) | G16: -15 °C
A17: 69518 | B17: Abtsteinach | C17: -12 °C | E17: 3814 | F17: Aigen (Waldviertel) | G17: -16 °C
A18: 83101 | B18: Achenmühle | C18: -18 °C | E18: 8943 | F18: Aigen im Ennstal | G18: -16 °C
A19: 77855 | B19: Achern | C19: -12 °C | E19: 4160 | F19: Aigen im Mühlkreis | G19: -14 °C
A20: 28832 | B20: Achim | C20: -12 °C | E20: 5351 | F20: Aigen-Voglhub | G20: -14 °C
A21: 82547 | B21: Achmühle | C21: -16 °C | E21: 9951 | F21: Ainet | G21: -16 °C
A22: 88480 | B22: Achstetten | C22: -16 °C | E22: 4676 | F22: Aistersheim | G22: -15 °C
A23: 47626 | B23: Achterhoek | C23: -10 °C | E23: 4211 | F23: Alberndorf in der Riedmark | G23: -14 °C
A24: 25917 | B24: Achtrup | C24: -10 °C | E24: 6861 | F24: Alberschwende | G24: -15 °C
A25: 37581 | B25: Ackenhausen | C25: -16 °C | E25: 3613 | F25: Albrechtsberg an der Großen Krems | G25: -17 °C
A26: 73099 | B26: Adelberg | C26: -16 °C | E26: 6071 | F26: Aldrans | G26: -15 °C
A27: 37139 | B27: Adelebsen | C27: -14 °C | E27: 4072 | F27: Alkoven | G27: -14 °C
A28: 79618 | B28: Adelhausen | C28: -12 °C | E28: 2534 | F28: Alland | G28: -14 °C
A29: 73486 | B29: Adelmannsfelden | C29: -16 °C | E29: 2535 | F29: Alland Heilstätte | G29: -15 °C
A30: 79669 | B30: Adelsberg | C30: -16 °C | E30: 3804 | F30: Allentsteig | G30: -17 °C
A31: 97737 | B31: Adelsberg | C31: -14 °C | E31: 8412 | F31: Allerheiligen bei Wildon | G31: -14 °C
A32: 85111 | B32: Adelschlag | C32: -16 °C | E32: 8643 | F32: Allerheiligen im Mürztal | G32: -14 °C
A33: 74740 | B33: Adelsheim | C33: -14 °C | E33: 4511 | F33: Allhaming | G33: -14 °C
A34: 86477 | B34: Adelsried | C34: -16 °C | E34: 5761 | F34: Alm | G34: -17 °C
A35: 4886 | B35: Adelwitz | C35: -16 °C | E35: 6236 | F35: Alpach | G35: -17 °C
A36: 21365 | B36: Adendorf | C36: -12 °C | E36: 8671 | F36: Alpl | G36: -16 °C
A37: 31171 | B37: Adensen | C37: -14 °C | E37: 6844 | F37: Altach | G37: -13 °C
A38: 31079 | B38: Adenstedt | C38: -16 °C | E38: 8992 | F38: Altaussee | G38: -15 °C
A39: 84166 | B39: Adlkofen | C39: -16 °C | E39: 4203 | F39: Altenberg bei Linz | G39: -14 °C
A40: 8626 | B40: Adorf/Vogtland | C40: -18 °C | E40: 3591 | F40: Altenburg | G40: -15 °C
A41: 31855 | B41: Aerzen | C41: -14 °C | E41: 4121 | F41: Altenfelden | G41: -15 °C
A42: 71563 | B42: Affalterbach | C42: -14 °C | E42: 4674 | F42: Altenhof am Hausruck | G42: -15 °C
A43: 74182 | B43: Affaltrach | C43: -14 °C | E43: 8934 | F43: Altenmarkt bei Sankt Gallen | G43: -15 °C
A44: 86444 | B44: Affing | C44: -16 °C | E44: 5541 | F44: Altenmarkt im Pongau | G44: -17 °C
A45: 71083 | B45: Affstätt | C45: -16 °C | E45: 2571 | F45: Altenmarkt-Thenneberg | G45: -15 °C
A46: 74858 | B46: Aglasterhausen | C46: -12 °C | E46: 3474 | F46: Altenwörth | G46: -13 °C
A47: 48683 | B47: Ahaus | C47: -10 °C | E47: 4950 | F47: Altheim | G47: -15 °C
A48: 88697 | B48: Ahausen | C48: -12 °C | E48: 9333 | F48: Althofen | G48: -15 °C
A49: 72160 | B49: Ahldorf | C49: -16 °C | E49: 3033 | F49: Altlengbach | G49: -14 °C
A50: 5922x | B50: Ahlen/Westf. | C50: -12 °C | E50: 2144 | F50: Altlichtenwarth | G50: -14 °C
A51: 6313 | B51: Ahlsdorf | C51: -14 °C | E51: 4813 | F51: Altmünster | G51: -14 °C
A52: 32609 | B52: Ahlsen | C52: -12 °C | E52: 4721 | F52: Altschwendt | G52: -16 °C
A53: 34292 | B53: Ahnatal | C53: -14 °C | E53: 2141 | F53: Ameis | G53: -14 °C
A54: 29353 | B54: Ahnsbeck | C54: -14 °C | E54: 4843 | F54: Ampflwang | G54: -16 °C
A55: 94527 | B55: Aholming | C55: -18 °C | E55: 3300 | F55: Amstetten | G55: -13 °C
A56: 74744 | B56: Ahorn | C56: -16 °C | E56: 7163 | F56: Andau | G56: -14 °C
A57: 96482 | B57: Ahorn | C57: -16 °C | E57: 6866 | F57: Andelsbuch | G57: -15 °C
A58: 95491 | B58: Ahorntal | C58: -16 °C | E58: 4770 | F58: Andorf | G58: -15 °C
A59: 38707 | B59: Ahrensberg | C59: -12 °C | E59: 4754 | F59: Andrichsfurt | G59: -15 °C
A60: 22926 | B60: Ahrensburg | C60: -12 °C | E60: 8184 | F60: Anger | G60: -14 °C
A61: 16356 | B61: Ahrensfelde | C61: -14 °C | E61: 2261 | F61: Angern an der March | G61: -14 °C
A62: 18320 | B62: Ahrenshagen | C62: -10 °C | E62: 5081 | F62: Anif | G62: -15 °C
A63: 53945 | B63: Ahrhütte | C63: -14 °C | E63: 3222 | F63: Annaberg | G63: -15 °C
A64: 86551 | B64: Aichach | C64: -16 °C | E64: 5524 | F64: Annaberg im Lammertal | G64: -15 °C
A65: 92262 | B65: Aichach | C65: -16 °C | E65: 4052 | F65: Ansfelden | G65: -13 °C
A66: 72539 | B66: Aichelau | C66: -16 °C | E66: 5102 | F66: Anthering | G66: -15 °C
A67: 73101 | B67: Aichelberg | C67: -16 °C | E67: 4980 | F67: Antiesenhofen | G67: -15 °C
A68: 75323 | B68: Aichelberg | C68: -16 °C | E68: 7143 | F68: Apetlon | G68: -14 °C
A69: 78733 | B69: Aichhalden | C69: -16 °C | E69: 3925 | F69: Arbesbach | G69: -18 °C
A70: 88317 | B70: Aichstetten | C70: -16 °C | E70: 4341 | F70: Arbing | G70: -14 °C
A71: 72631 | B71: Aichtal | C71: -14 °C | E71: 3321 | F71: Ardagger Markt | G71: -13 °C
A72: 73773 | B72: Aichwald | C72: -14 °C | E72: 8904 | F72: Ardning | G72: -17 °C
A73: 84539 | B73: Aidenbach | C73: -16 °C | E73: 8454 | F73: Arnfels | G73: -14 °C
A74: 94501 | B74: Aidenbach | C74: -16 °C | E74: 9601 | F74: Arnoldstein | G74: -16 °C
A75: 97491 | B75: Aidhausen | C75: -16 °C | E75: 4122 | F75: Arnreit | G75: -14 °C
A76: 71134 | B76: Aidlingen | C76: -16 °C | E76: 9543 | F76: Arriach | G76: -15 °C
A77: 88448 | B77: Aigendorf | C77: -16 °C | E77: 3661 | F77: Artstetten | G77: -15 °C
A78: 88048 | B78: Ailingen | C78: -12 °C | E78: 6471 | F78: Arzl im Pitztal | G78: -16 °C
A79: 86447 | B79: Aindling | C79: -16 °C | E79: 4082 | F79: Aschach an der Donau | G79: -14 °C
A80: 83404 | B80: Ainring | C80: -16 °C | E80: 4421 | F80: Aschach an der Steyr | G80: -14 °C
A81: 83026 | B81: Aising | C81: -18 °C | E81: 6274 | F81: Aschau (Zillertal) | G81: -15 °C
A82: 89344 | B82: Aislingen | C82: -16 °C | E82: 3361 | F82: Aschbach Markt | G82: -14 °C
A83: 94330 | B83: Aiterhofen | C83: -18 °C | E83: 5252 | F83: Aspach | G83: -15 °C
A84: 88319 | B84: Aitrach | C84: -16 °C | E84: 2870 | F84: Aspang Markt | G84: -14 °C
A85: 78554 | B85: Aixheim | C85: -18 °C | E85: 2151 | F85: Asparn an der Zaya | G85: -14 °C
A86: 37671 | B86: Albaxen | C86: -12 °C | E86: 3041 | F86: Asperhofen | G86: -14 °C
A87: 79774 | B87: Albbruck | C87: -12 °C | E87: 8966 | F87: Assach | G87: -15 °C
A88: 8280 | B88: Albernau | C88: -16 °C | E88: 9911 | F88: Assling | G88: -16 °C
A89: 8280 | B89: Alberoda | C89: -16 °C | E89: 4481 | F89: Asten | G89: -13 °C
A90: 4420 | B90: Albersdorf | C90: -14 °C | E90: 4864 | F90: Attersee | G90: -15 °C
A91: 73095 | B91: Albershausen | C91: -16 °C | E91: 4800 | F91: Attnang | G91: -15 °C
A92: 76857 | B92: Albersweiler | C92: -12 °C | E92: 4904 | F92: Atzbach | G92: -15 °C
A93: 88433 | B93: Alberweiler | C93: -16 °C | E93: 3452 | F93: Atzenbrugg | G93: -13 °C
A94: 72458 | B94: Albstadt | C94: -18 °C | E94: 4332 | F94: Au an der Donau | G94: -13 °C
A95: 72461 | B95: Albstadt | C95: -18 °C | E95: 8624 | F95: Au bei Aflenz | G95: -16 °C
A96: 57258 | B96: Alchen | C96: -12 °C | E96: 2214 | F96: Auersthal | G96: -14 °C
A97: 52457 | B97: Aldenhoven | C97: -12 °C | E97: 6313 | F97: Auffach | G97: -18 °C
A98: 94501 | B98: Aldersbach | C98: -16 °C | E98: 4971 | F98: Aurolzmünster | G98: -15 °C
A99: 78554 | B99: Aldingen | C99: -18 °C | E99: 9831 | F99: Außerfragant | G99: -15 °C
A100: 86733 | B100: Alerheim | C100: -16 °C | E100: 9931 | F100: Außervillgraten | G100: -17 °C
A101: 91793 | B101: Alesheim | C101: -16 °C | E101: 6094 | F101: Axams | G101: -15 °C
A102: 73553 | B102: Alfdorf | C102: -16 °C | E102: 6653 | F102: Bach (Lechtal) | G102: -17 °C
A103: 31061 | B103: Alfeld | C103: -16 °C | E103: 4672 | F103: Bachmanning | G103: -15 °C
A104: 91236 | B104: Alfeld | C104: -16 °C | E104: 8990 | F104: Bad Aussee | G104: -14 °C
A105: 91177 | B105: Alfershausen | C105: -16 °C | E105: 9530 | F105: Bad Bleiberg | G105: -17 °C
A106: 49594 | B106: Alfhausen | C106: -12 °C | E106: 2405 | F106: Bad Deutsch-Altenburg | G106: -14 °C
A107: 53347 | B107: Alfter | C107: -12 °C | E107: 2721 | F107: Bad Fischau | G107: -14 °C
A108: 99310 | B108: Alkersleben | C108: -14 °C | E108: 8524 | F108: Bad Gams | G108: -14 °C
A109: 59846 | B109: Allendorf | C109: -14 °C | E109: 8344 | F109: Bad Gleichenberg | G109: -13 °C
A110: 35108 | B110: Allendorf/Eder | C110: -14 °C | E110: 4822 | F110: Bad Goisern | G110: -14 °C
A111: 90584 | B111: Allersberg | C111: -16 °C | E111: 4540 | F111: Bad Hall | G111: -14 °C
A112: 88422 | B112: Alleshausen | C112: -16 °C | E112: 6323 | F112: Bad Häring | G112: -17 °C
A113: 82239 | B113: Alling | C113: -16 °C | E113: 5630 | F113: Bad Hofgastein | G113: -16 °C
A114: 78464 | B114: Allmannsdorf | C114: -12 °C | E114: 4820 | F114: Bad Ischl | G114: -14 °C
A115: 77963 | B115: Allmannsweier | C115: -12 °C | E115: 9546 | F115: Bad Kleinkirchheim | G115: -16 °C
A116: 89604 | B116: Allmendingen | C116: -14 °C | E116: 4362 | F116: Bad Kreuzen | G116: -14 °C
A117: 71573 | B117: Allmersbach im Tal | C117: -14 °C | E117: 4190 | F117: Bad Leonfelden | G117: -16 °C
A118: 6507 | B118: Allrode / Harz | C118: -16 °C | E118: 8983 | F118: Bad Mitterndorf | G118: -16 °C
A119: 6542 | B119: Allstedt | C119: -14 °C | E119: 9462 | F119: Bad Sankt Leonhard im Lavanttal | G119: -14 °C
A120: 31079 | B120: Almstedt | C120: -16 °C | E120: 4701 | F120: Bad Schallerbach | G120: -16 °C
A121: 46519 | B121: Alpen | C121: -10 °C | E121: 2853 | F121: Bad Schönau | G121: -13 °C
A122: 46519 | B122: Alpen-Bönninghardt | C122: -10 °C | E122: 7431 | F122: Bad Tatzmannsdorf | G122: -13 °C
A123: 99195 | B123: Alperstedt | C123: -14 °C | E123: 2540 | F123: Bad Vöslau | G123: -13 °C
A124: 72275 | B124: Alpirsbach | C124: -16 °C | E124: 4654 | F124: Bad Wimsbach-Neydharting | G124: -15 °C
A125: 52477 | B125: Alsdorf/Rheinl. | C125: -12 °C | E125: 4283 | F125: Bad Zell | G125: -14 °C
A126: 67722 | B126: Alsenbrück | C126: -12 °C | E126: 2500 | F126: Baden | G126: -13 °C
A127: 36304 | B127: Alsfeld | C127: -14 °C | E127: 5640 | F127: Badgastein | G127: -15 °C
A128: 67577 | B128: Alsheim | C128: -12 °C | E128: 9805 | F128: Baldramsdorf | G128: -14 °C
A129: 57515 | B129: Alsting (Frankreich) | C129: -12 °C | E129: 8572 | F129: Bärnbach | G129: -14 °C
A130: 19303 | B130: Alt Jabel | C130: -12 °C | E130: 4342 | F130: Baumgartenberg | G130: -14 °C
A131: 18236 | B131: Alt Karin | C131: -10 °C | E131: 6121 | F131: Baumkirchen | G131: -15 °C
A132: 75365 | B132: Altburg | C132: -16 °C | E132: 4441 | F132: Behamberg | G132: -15 °C
A133: 75365 | B133: Altburg | C133: -16 °C | E133: 2413 | F133: Berg (bei Kittsee) | G133: -14 °C
A134: 3229 | B134: Altdöbern | C134: -16 °C | E134: 9771 | F134: Berg (im Drautal) | G134: -16 °C
A135: 71155 | B135: Altdorf | C135: -16 °C | E135: 5101 | F135: Bergheim | G135: -15 °C
A136: 72655 | B136: Altdorf | C136: -16 °C | E136: 2560 | F136: Berndorf (an der Triesting) | G136: -14 °C
A137: 77955 | B137: Altdorf | C137: -12 °C | E137: 5165 | F137: Berndorf bei Salzburg | G137: -15 °C
A138: 84032 | B138: Altdorf | C138: -16 °C | E138: 2275 | F138: Bernhardsthal | G138: -14 °C
A139: 90518 | B139: Altdorf | C139: -16 °C | E139: 7434 | F139: Bernstein | G139: -13 °C
A140: 83549 | B140: Alteiselfing | C140: -16 °C | E140: 6622 | F140: Berwang | G140: -18 °C
A141: 58762 | B141: Altena / Westf. | C141: -12 °C | E141: 6870 | F141: Bezau | G141: -17 °C
A142: 53505 | B142: Altenahr | C142: -14 °C | E142: 6633 | F142: Biberwier | G142: -18 °C
A143: 38707 | B143: Altenau | C143: -16 °C | E143: 6621 | F143: Bichlbach | G143: -18 °C
A144: 4828 | B144: Altenbach | C144: -14 °C | E144: 2362 | F144: Biedermannsdorf | G144: -13 °C
A145: 33184 | B145: Altenbeken | C145: -14 °C | E145: 8190 | F145: Birkfeld | G145: -15 °C
A146: 1773 | B146: Altenberg | C146: -16 °C | E146: 9652 | F146: Birnbaum | G146: -14 °C
A147: 49733 | B147: Altenberge | C147: -10 °C | E147: 2102 | F147: Bisamberg | G147: -13 °C
A148: 48341 | B148: Altenbergen | C148: -12 °C | E148: 8731 | F148: Bischoffeld | G148: -15 °C
A149: 34587 | B149: Altenbrunslar | C149: -14 °C | E149: 5500 | F149: Bischofshofen | G149: -16 °C
A150: 4600 | B150: Altenburg | C150: -14 °C | E150: 3232 | F150: Bischofstetten | G150: -14 °C
A151: 34587 | B151: Altenburg | C151: -14 °C | E151: 6874 | F151: Bizau | G151: -17 °C
A152: 29574 | B152: Altenebstorf | C152: -14 °C | E152: 9150 | F152: Bleiburg | G152: -16 °C
A153: 45329 | B153: Altenessen | C153: -10 °C | E153: 3372 | F153: Blindenmarkt | G153: -13 °C
A154: 98701 | B154: Altenfeld | C154: -16 °C | E154: 6700 | F154: Bludenz | G154: -15 °C
A155: 66885 | B155: Altenglau | C155: -14 °C | E155: 2602 | F155: Blumau bei Felixdorf | G155: -13 °C
A156: 36391 | B156: Altengronau | C156: -14 °C | E156: 8283 | F156: Blumau in der Steiermark | G156: -13 °C
A157: 31558 | B157: Altenhagen | C157: -14 °C | E157: 2213 | F157: Bockfließ | G157: -14 °C
A158: 33729 | B158: Altenhagen | C158: -12 °C | E158: 5645 | F158: Böckstein | G158: -15 °C
A159: 85356 | B159: Altenhausen | C159: -16 °C | E159: 9551 | F159: Bodensdorf | G159: -15 °C
A160: 77743 | B160: Altenheim | C160: -12 °C | E160: 3071 | F160: Böheimkirchen | G160: -14 °C
A161: 16244 | B161: Altenhof | C161: -14 °C | E161: 3333 | F161: Böhlerwerk | G161: -14 °C
A162: 96479 | B162: Altenhof | C162: -16 °C | E162: 5733 | F162: Bramberg am Wildkogel | G162: -18 °C
A163: 57368 | B163: Altenhundem | C163: -14 °C | E163: 6708 | F163: Brand | G163: -17 °C
A164: 57610 | B164: Altenkirchen | C164: -14 °C | E164: 3873 | F164: Brand (Waldviertel) | G164: -17 °C
A165: 66903 | B165: Altenkirchen | C165: -12 °C | E165: 6234 | F165: Brandenberg | G165: -17 °C
A166: 23730 | B166: Altenkrempe | C166: -10 °C | E166: 5280 | F166: Braunau am Inn | G166: -15 °C
A167: 83352 | B167: Altenmarkt | C167: -16 °C | E167: 6751 | F167: Braz | G167: -16 °C
A168: 29575 | B168: Altenmedingen | C168: -12 °C | E168: 6900 | F168: Bregenz | G168: -11 °C
A169: 26169 | B169: Altenoythe | C169: -12 °C | E169: 6904 | F169: Bregenz-Rieden | G169: -12 °C
A170: 95500 | B170: Altenplos | C170: -16 °C | E170: 6903 | F170: Bregenz-Vorkloster | G170: -11 °C
A171: 72657 | B171: Altenriet | C171: -16 °C | E171: 4075 | F171: Breitenaich | G171: -15 °C
A172: 6642 | B172: Altenrode | C172: -14 °C | E172: 2624 | F172: Breitenau (Steinfeld) | G172: -14 °C
A173: 89281 | B173: Altenstadt | C173: -16 °C | E173: 7091 | F173: Breitenbrunn | G173: -13 °C
A174: 92665 | B174: Altenstadt | C174: -16 °C | E174: 8313 | F174: Breitenfeld an der Rittschein | G174: -13 °C
A175: 72213 | B175: Altensteig | C175: -16 °C | E175: 2384 | F175: Breitenfurt bei Wien | G175: -14 °C
A176: 17087 | B176: Altentreptow | C176: -14 °C | E176: 4691 | F176: Breitenschützing | G176: -15 °C
A177: 97327 | B177: Altertheim | C177: -14 °C | E177: 2673 | F177: Breitenstein | G177: -16 °C
A178: 66802 | B178: Altforweiler | C178: -12 °C | E178: 2041 | F178: Breitenwaida | G178: -14 °C
A179: 1462 | B179: Altfranken | C179: -14 °C | E179: 6364 | F179: Brixen im Thale | G179: -18 °C
A180: 84169 | B180: Altfraunhofen | C180: -16 °C | E180: 6230 | F180: Brixlegg | G180: -15 °C
A181: 9326 | B181: Altgeringswalde | C181: -14 °C | E181: 2833 | F181: Bromberg | G181: -14 °C
A182: 72160 | B182: Altheim | C182: -16 °C | E182: 5671 | F182: Bruck an der Großglocknerstraße | G182: -18 °C
A183: 74731 | B183: Altheim | C183: -16 °C | E183: 8251 | F183: Bruck an der Lafnitz | G183: -14 °C
A184: 77743 | B184: Altheim | C184: -12 °C | E184: 2460 | F184: Bruck an der Leitha | G184: -14 °C
A185: 88433 | B185: Altheim | C185: -16 °C | E185: 8600 | F185: Bruck an der Mur | G185: -14 °C
A186: 89174 | B186: Altheim | C186: -16 °C | E186: 9371 | F186: Brückl | G186: -15 °C
A187: 89195 | B187: Altheim | C187: -16 °C | E187: 2345 | F187: Brunn am Gebirge | G187: -13 °C
A188: 89605 | B188: Altheim | C188: -14 °C | E188: 3595 | F188: Brunn an der Wild | G188: -16 °C
A189: 88499 | B189: Altheim ( b Riedlingen,Württ ) | C189: -14 °C | E189: 8481 | F189: Brunnsee | G189: -13 °C
A190: 4451 | B190: Althen | C190: -14 °C | E190: 8274 | F190: Buch bei Hartberg | G190: -12 °C
A191: 75382 | B191: Althengstett | C191: -14 °C | E191: 4611 | F191: Buchkirchen | G191: -14 °C
A192: 71566 | B192: Althütte | C192: -14 °C | E192: 8291 | F192: Burgau | G192: -12 °C
A193: 72119 | B193: Altingen | C193: -16 °C | E193: 5274 | F193: Burgkirchen | G193: -15 °C
A194: 82054 | B194: Altkirchen | C194: -16 °C | E194: 5111 | F194: Bürmoos | G194: -15 °C
A195: 19288 | B195: Alt-Krenzlin | C195: -14 °C | E195: 6752 | F195: Dalaas | G195: -17 °C
A196: 68804 | B196: Altlußheim | C196: -12 °C | E196: 6884 | F196: Damüls | G196: -16 °C
A197: 73479 | B197: Altmannsrot | C197: -16 °C | E197: 8241 | F197: Dechantskirchen | G197: -13 °C
A198: 93336 | B198: Altmannstein | C198: -16 °C | E198: 9635 | F198: Dellach (im Gailtal) | G198: -15 °C
A199: 84453 | B199: Altmühldorf | C199: -16 °C | E199: 9772 | F199: Dellach im Drautal | G199: -16 °C
A200: 85250 | B200: Altomünster | C200: -16 °C | E200: 4693 | F200: Desselbrunn | G200: -15 °C
A201: 77815 | B201: Altschweier | C201: -14 °C | E201: 2443 | F201: Deutsch Brodersdorf | G201: -13 °C
... 7831 more rows

Sheet Vorlauftemperatur (hidden)
B2: =Translation!A91 -> Vorlauftemperatur
C5: =Translation!A5 -> Eingabewerte
C7: =Translation!A92 -> Raumsolltemperatur in °C
C9: =Translation!A93 -> Steigung Heizkurve
C11: =Translation!A94 -> Bivalenzpunkt (Gewählt)
C13: =Translation!A95 -> Temperaturspreizung (Gewählt)
C15: =Translation!A96 -> Rücklauftemperatur (Bivalenzpunkt)
C17: =Translation!A97 -> Vorlauftemperatur (Bivalenzpunkt)
H24: Comboboxen | I24: Zahlenwert | J24: Comboboxen | K24: Zahlenwert | L24: Auswahl | M24: Zahlenwert | N24: RL-Bivalenz | O24: Auswahl | P24: Zahlenwert | Q24: VL-Bivalenz | R24: VL-Bivalenz
H25: Raumsoll | I25: Raumsoll | J25: Steigung | K25: Steigung | L25: Bivalenzpunkt | M25: Bivalenzpunkt | N25: berechnet | O25: Spreizung | P25: Spreizung | Q25: berechnet | R25: gerundet
H26: 15 °C | I26: =VLOOKUP(H26,H27:I43,2,FALSE) -> 15 | J26: Standard FB-Heizung (0,3) | K26: =VLOOKUP(J26,J27:K48,2,FALSE) -> 0.3 | L26: =Berechnung!I6 -> -5 °C | M26: =VLOOKUP(L26,L27:M48,2,FALSE) -> -5 | N26: =(I$26-M26)*$K$26*90/($I$26-M26+70)+$I$26 -> 21 | O26: =Berechnung!K6 -> 7 K | P26: =VLOOKUP(O26,O27:P48,2,FALSE) -> 7 | Q26: =(($I$26-M26)*$K$26*90/($I$26-M26+70)+$I$26)+(-$P$26/40*M26+$P$26/2) -> 25.375 | R26: =ROUND(Q26,0) -> 25
H27: =Translation!A98&" (20°C)" -> Standardwert (20°C) | I27: 20 | J27: =Translation!A99 -> Standard FB-Heizung (0,3) | K27: 0.3 | L27: -10 °C | M27: -10 | N27: =ROUND(N26,1)&" °C" -> 21 °C | O27: 3 K | P27: 3 | Q27: =ROUND(Q26,1)&" °C" -> 25,4 °C | R27: =R26&" °C" -> 25 °C
H28: 15 °C | I28: 15 | J28: =Translation!A100 -> Standard Radiatoren (0,8) | K28: 0.8 | L28: -9 °C | M28: -9 | O28: 4 K | P28: 4
H29: 16 °C | I29: 16 | J29: 0,1 | K29: 0.1 | L29: -8 °C | M29: -8 | O29: 5 K | P29: 5
H30: 17 °C | I30: 17 | J30: 0,2 | K30: 0.2 | L30: -7 °C | M30: -7 | O30: 6 K | P30: 6
H31: 18 °C | I31: 18 | J31: 0,3 | K31: 0.3 | L31: -6 °C | M31: -6 | O31: 7 K | P31: 7
H32: 19 °C | I32: 19 | J32: 0,4 | K32: 0.4 | L32: -5 °C | M32: -5 | O32: 8 K | P32: 8
H33: 20 °C | I33: 20 | J33: 0,5 | K33: 0.5 | L33: -4 °C | M33: -4 | O33: 9 K | P33: 9
H34: 21 °C | I34: 21 | J34: 0,6 | K34: 0.6 | L34: -3 °C | M34: -3 | O34: 10 K | P34: 10
H35: 22 °C | I35: 22 | J35: 0,7 | K35: 0.7 | L35: -2 °C | M35: -2
H36: 23 °C | I36: 23 | J36: 0,8 | K36: 0.8 | L36: -1 °C | M36: -1
H37: 24 °C | I37: 24 | J37: 0,9 | K37: 0.9 | L37: 0 °C | M37: 0
C38: =Translation!A101&" "&O26&")" -> Heizkurve Vorlauf (Spreizung bei -20°C: 7 K) | H38: 25 °C | I38: 25 | J38: 1,0 | K38: 1 | L38: 1 °C | M38: 1
C39: =Translation!A102&" "&I26&" °C | "&Translation!A103&": "&K26&")" -> Heizkurve Rücklauf (Raumtemperatur: 15 °C | Steigung: 0,3) | H39: 26 °C | I39: 26 | J39: 1,1 | K39: 1.1 | L39: 2 °C | M39: 2
H40: 27 °C | I40: 27 | J40: 1,2 | K40: 1.2 | L40: 3 °C | M40: 3
H41: 28 °C | I41: 28 | J41: 1,3 | K41: 1.3 | L41: 4 °C | M41: 4
H42: 29 °C | I42: 29 | J42: 1,4 | K42: 1.4 | L42: 5 °C | M42: 5
H43: 30 °C | I43: 30 | J43: 1,5 | K43: 1.5
J44: 1,6 | K44: 1.6
J45: 1,7 | K45: 1.7
J46: 1,8 | K46: 1.8
J47: 1,9 | K47: 1.9
J48: 2,0 | K48: 2
H50: Rücklauftemperaturkurve | L50: Bivalenzpunkt
H51: Außentemp. | I51: Rücklauftemp. | J51: Vorlauftemp. | L51: Linie | M51: X1 | N51: X2 | O51: Y1 | P51: Y2
H52: -20 | I52: =($I$26-H52)*$K$26*90/($I$26-H52+70)+$I$26 -> 24 | J52: =(($I$26-H52)*$K$26*90/($I$26-H52+70)+$I$26)+(-$P$26/40*H52+$P$26/2) -> 31 | L52: Horizontal | M52: -20 | N52: =M26 -> -5 | O52: =Q26 -> 25.375 | P52: =Q26 -> 25.375
H53: -15 | I53: =($I$26-H53)*$K$26*90/($I$26-H53+70)+$I$26 -> 23.1 | J53: =(($I$26-H53)*$K$26*90/($I$26-H53+70)+$I$26)+(-$P$26/40*H53+$P$26/2) -> 29.225 | L53: Vertikal | M53: =M26 -> -5 | N53: =M26 -> -5 | O53: 10 | P53: =Q26 -> 25.375
H54: -10 | I54: 22.10526316 | J54: 27.35526316
H55: -5 | I55: 21 | J55: 25.375
H56: 0 | I56: 19.76470588 | J56: 23.26470588
H57: 5 | I57: 18.375 | J57: 21
H58: 10 | I58: 16.8 | J58: 18.55
H59: 15 | I59: 15 | J59: 15.875
H60: 20 | I60: 12.92307692 | J60: 12.92307692

Sheet Translation (hidden)
A2: Deutsch | B2: Deutsch | C2: English | D2: Nederlands | E2: Francais | F2: Suomi
A3: Jahresarbeitszahl | B3: Jahresarbeitszahl | C3: Yearly COP | D3: Jaar COP. | E3: COP annuel | F3: Vuotuinen COP
A4: VDI 4650 | TEIL 1 | B4: VDI 4650 | TEIL 1 | C4: VDI 4650 | PART 1 | D4: VDI 4650 | DEEL 1 | E4: VDI 4650 | PARTIE 1 | F4: VDI 4650 | OSA 1
A5: Eingabewerte | B5: Eingabewerte | C5: Input values | D5: Ingevoerde waarden | E5: valeurs d'entrée | F5: Syötetyt arvot
A6: Wärmequelle | B6: Wärmequelle | C6: Heat source | D6: Bron | E6: source de chaleur | F6: Lämmönlähde
A7: Anzahl | Typ Wärmepumpe | B7: Anzahl | Typ Wärmepumpe | C7: Quantity | Type heat pump | D7: Aantal | Type warmtepomp | E7: nombre | type de pompe à chaleur | F7: Määrä | Lämpöpumpputyyppi
A8: Betriebsweise | Bivalenzpunkt | B8: Betriebsweise | Bivalenzpunkt | C8: Operation mode | Dual-mode point | D8: Werkwijze | Bivalentiepunt | E8: mode | bivalence | F8: Käyttötapa | Rinnakkaiskäyttöpiste
A9: Vorlauftemperatur | B9: Vorlauftemperatur | C9: Flow temperature | D9: Aanvoertemperatuur | E9: température de départ | F9: Virtauksen lämpötila
A10: Bivalenzpunkt | B10: Bivalenzpunkt | C10: Dual-mode point | D10: Bivalentiepunt | E10: point de bivalence | F10: Rinnakkaiskäyttöpiste
A11: Temperaturspreizung Heizung | B11: Temperaturspreizung Heizung | C11: Temperature difference heating system | D11: Temperatuurspreiding verwarming | E11: écart de température chauffage | F11: Lämmitysjärjestelmän lämpötilaero
A12: Heizgrenztemperatur | B12: Heizgrenztemperatur | C12: Heating treshold | D12: Verwarmingsgrenstemperatuur | E12: limite de chauffe | F12: Lämmityskynnys
A13: Minimale Soleeintrittstemperatur | B13: Minimale Soleeintrittstemperatur | C13: Brine temperature | D13: Minimale bronintrede temperatuur | E13: température minimale source | F13: Liuoksen lämpötila
A14: Mittlere Quellentemperatur | B14: Mittlere Quellentemperatur | C14: Average source temperature | D14: Gemiddelde brontemperatuur | E14: température moyenne source | F14: Lähdelämpötilan keskiarvo
A15: Norm-Außentemperatur Standort | B15: Norm-Außentemperatur Standort | C15: Outside temperature location | D15: Standaard buitentemperatuur locatie | E15: position température extérieure | F15: Mitoitusulkolämpötila
A16: Leistungsaufnahme Solepumpe | B16: Leistungsaufnahme Solepumpe | C16: Elec. consumption source pump | D16: Vermogensopname brinepomp | E16: consommation pompe source | F16: Liuospumpun sähkön kulutus
A17: Leistungsaufnahme Quellenpumpen | B17: Leistungsaufnahme Quellenpumpen | C17: Elec. consumption source pumps | D17: Vermogensopname bronpompen | E17: consommation pompes source | F17: Liuospumppujen sähkön kulutus
A18: Leistungsaufnahme Quellenpumpe | B18: Leistungsaufnahme Quellenpumpe | C18: Elec. consumption source pump | D18: Vermogensopname bronpomp | E18: consommation pompe source | F18: Liuospumpun sähkön kulutus
A19: Warmwasserbereitung | B19: Warmwasserbereitung | C19: Domestic hot water | D19: Warm water bereiding | E19: eau chaude sanitaire | F19: Lämmin käyttövesi
A20: Warmwasser-Wärmepumpe | B20: Warmwasser-Wärmepumpe | C20: DHW heat pump | D20: Warm water-Warmtepomp | E20: ballon thermodynamique | F20: Käyttövesilämpöpumppu
A21: Anteil Warmwasserbereitung | B21: Anteil Warmwasserbereitung | C21: DHW heating ratio | D21: Aandeel warm water bereiding | E21: proportion de l'eau chaude sanitaire | F21: Käyttöveden lämmityssuhde
A22: Ergebnisse | B22: Ergebnisse | C22: Results | D22: Resultaten | E22: résultats | F22: Tulokset
A23: Deckungsanteil Wärmepumpe | B23: Deckungsanteil Wärmepumpe | C23: Coverage of heat pump | D23: Dekkingsaandeel warmtepomp | E23: couverture PAC | F23: Lämpöpumpun kattavuus
A24: Jahresarbeitszahl Heizung | B24: Jahresarbeitszahl Heizung | C24: Yearly COP Space heating | D24: Jaarlijkse coëfficiënt verwarming | E24: COP annuel chauffage | F24: Lämmityksen vuotuinen COP
A25: Jahresarbeitszahl WWB | B25: Jahresarbeitszahl WWB | C25: Yearly COP DHW heating | D25: Jaarlijkse coëfficiënt WWB | E25: COP annuel sanitaire | F25: Käyttöveden lämmityksen vuotuinen COP
A26: WWB | B26: WWB | C26: DHW | D26: WWB | E26: ECS | F26: KV
A27: Gesamt-Jahresarbeitszahl | B27: Gesamt-Jahresarbeitszahl | C27: Total yearly COP | D27: Totale jaarlijkse coëfficiënt | E27: COP total annuel | F27: Vuotuinen COP yhteensä
A28: Berechnung nach VDI 4650 | Teil 1 (März 2009). Irrtum und Technische Änderungen vorbehalten. | B28: Berechnung nach VDI 4650 | Teil 1 (März 2009). Irrtum und Technische Änderungen vorbehalten. | D28: Berekening volgens VDI 4650 | Deel 1 (maart 2009). Onder voorbehoud van technische wijzigingen. | E28: Calcul selon la norme VDI 4650 | Partie 1 (Mars 2009). Sous réserve de modifications techniques.
A29: Rechenwerte Heizungswärmepumpe | B29: Rechenwerte Heizungswärmepumpe | C29: Calculated values heat pump | D29: Calculatiewaarde warmtepomp | E29: Valeurs calculées PAC | F29: Lämpöpumpun lasketut arvot
A30: Rechenwerte Heizung | B30: Rechenwerte Heizung | C30: Calculated values heating | D30: Calculatiewaarde verwarming | E30: Valeurs calculées chauffage | F30: Lämmityksen lasketut arvot
A31: Temperaturdifferenz Prüfstand | B31: Temperaturdifferenz Prüfstand | C31: Temp. Diff. laboratory measurement | D31: Temperatuurverschil-lab.meeting | E31: Test de différence de température | F31: Testattu lämpötilaero
A32: Leistungszahl | B32: Leistungszahl | C32: COP | D32: COP | E32: COP | F32: COP
A33: Heizleistung | B33: Heizleistung | C33: Heating output | D33: Verwarmingsvermogen | E33: Capacité thermique | F33: Lämmitysteho
A34: Leistungsaufnahme Verdichter | B34: Leistungsaufnahme Verdichter | C34: Power consumption compressor | D34: Vermogensopname compressor | E34: Puissance absorbée | F34: Kompressorin energiankulutus
A35: Korrekturfaktor | B35: Korrekturfaktor | C35: Corection factor | D35: Correctiefactor | E35: Facteur de correction | F35: Korjauskerroin
A36: Korrekturfaktor (Solepumpe) | B36: Korrekturfaktor (Solepumpe) | C36: Correction factor (Source pump) | D36: Correctiefactor (brinepomp) | E36: Facteur de correction (pompe source) | F36: Korjauskerroin (Liuospumppu)
A37: Korrekturfaktor (Quellenpumpen) | B37: Korrekturfaktor (Quellenpumpen) | C37: Correction factor (Source pumps) | D37: Correctiefactor (bronpompen) | E37: Facteur de correction (pompes source) | F37: Korjauskerroin (Liuospumput)
A38: Korrekturfaktor (Quellenpumpe) | B38: Korrekturfaktor (Quellenpumpe) | C38: Correction factor (Source pump) | D38: Correctiefactor (bronpomp) | E38: Facteur de correction (pompe source) | F38: Korjauskerroin (Liuospumppu)
A39: Korrekturfaktor (Verdampfer) | B39: Korrekturfaktor (Verdampfer) | C39: Correction factor (evaporator) | D39: Correctiefactor (verdamper) | E39: Facteur de correction (évaporateur) | F39: Korjauskerroin (Höyrystin)
A40: Korrekturfaktor (Verflüssiger) | B40: Korrekturfaktor (Verflüssiger) | C40: Correction factor (condenser) | D40: Correctiefactor (condensor) | E40: Facteur de correction (condensateur) | F40: Korjauskerroin (Lauhdutin)
A41: Jahresarbeitszahl (Monovalent) | B41: Jahresarbeitszahl (Monovalent) | C41: Yearly COP (mono-mode) | D41: Jaarlijkse COP (monovalent) | E41: COP annuel monovalent | F41: Vuotuinen COP (Monokäyttö)
A42: Rechenwerte Warmwasserbereitung | B42: Rechenwerte Warmwasserbereitung | C42: Calculated values domestic hot water | D42: Calculatiewaarde WW bereiding | E42: Valeurs calculées sanitaire | F42: Käyttöveden lasketut arvot
A43: Leistungszahl WW-Wärmepumpe | B43: Leistungszahl WW-Wärmepumpe | C43: COP DHW heat pump | D43: Vermogen WW-warmtepomp | E43: COP PAC sanitaire | F43: Käyttövesilämpöpumpun COP
A44: WW-Temperatur Prüfstand | B44: WW-Temperatur Prüfstand | C44: DHW-temp. laboratory measurement | D44: WW-temperatuur-lab.meeting | E44: Sanitaire-température d'essai | F44: Testattu käyttöveden lämpötila
A45: Korrekturfaktor (Prüfstand) | B45: Korrekturfaktor (Prüfstand) | C45: Correction factor (test stand) | D45: Correctiefactor (lab.meeting) | E45: Facteur de correction (banc d'essai) | F45: Korjauskerroin (testattu)
A46: Korrekturfaktor (Wärmequelle WWB) | B46: Korrekturfaktor (Wärmequelle WWB) | C46: Correction factor (heat source DHW) | D46: Correctiefactor (Bron WWB) | E46: Facteur de correction (PAC sanitaire) | F46: Korjauskerroin (käyttöveden lämmönlähde)
A47: Heizung | B47: Heizung | C47: Heating | D47: Verwarming | E47: Chauffage | F47: Lämmitys
A48: Rechenwerte Warmwasser-Wärmepumpe | B48: Rechenwerte Warmwasser-Wärmepumpe | C48: Calculated values DHW-heat pump | D48: Calculatiewaarde warm water warmtepomp | E48: Valeurs calculées PAC sanitaire | F48: Käyttövesilämpöpumpun lasketut arvot
A49: Berechnung läuft | B49: Berechnung läuft | C49: Calculating… | D49: Calculatie loopt | E49: Le calcul se fait… | F49: Laskee…
A50: Außenluft | B50: Außenluft | C50: Air | D50: Buitenlucht | E50: Air | F50: Ilma
A51: Erdreich | B51: Erdreich | C51: Brine | D51: Brine | E51: Sol | F51: Liuos
A52: Grundwasser (Zwischen-WT) | B52: Grundwasser (Zwischen-WT) | C52: Water (heat exchanger) | D52: Grondwater (Tussen-Wisselaar) | E52: Eau (échangeur) | F52: Vesi (lämmönvaihdin)
A53: Grundwasser | B53: Grundwasser | C53: Water | D53: Grondwater | E53: Eau | F53: Vesi
A54: Wasser-Wasser-WP (Manuell) | B54: Wasser-Wasser-WP (Manuell) | C54: Manual input | D54: Water-water warmtepomp (handmatig) | E54: PAC eau/eau (manuel) | F54: Käsisyöttö
A55: Luft-Wasser-WP (Manuell) | B55: Luft-Wasser-WP (Manuell) | C55: Manual input | D55: Lucht-water warmtepomp (handmatig) | E55: PAC air/eau (manuel) | F55: Käsisyöttö
A56: Sole-Wasser-WP (Manuell) | B56: Sole-Wasser-WP (Manuell) | C56: Manual input | D56: Brine-water warmtepomp (handmatig) | E56: PAC eau glycolée/eau (manuel) | F56: Käsisyöttö
A57: Warmwasser-WP (Manuell) | B57: Warmwasser-WP (Manuell) | C57: Manual input | D57: Water-water warmtepomp (handmatig) | E57: PAC eau/eau (manuel) | F57: Käsisyöttö
A58: Monovalent | B58: Monovalent | C58: Mono-mode | D58: Monovalent | E58: mode monovalent | F58: Monokäyttö (täysteho)
A59: Monoenergetisch | B59: Monoenergetisch | C59: Monoenergetic | D59: Mono-energetisch | E59: monoénergétiques | F59: Monoenerginen (täystehoinen sähkötuella)
A60: Bivalent-Parallel | B60: Bivalent-Parallel | C60: Dual-mode-parallel | D60: Bivalent-parallel | E60: Bivalent - Parallèle | F60: Rinnakkais-käyttö
A61: Bivalent-Alternativ | B61: Bivalent-Alternativ | C61: Dual-mode-alternative | D61: Bivalent-alternatief | E61: Bivalent - Alternatif | F61: Rinnakkais-/vaihtoehtoiskäyttö
A62: Bivalent-Teilparallel | B62: Bivalent-Teilparallel | C62: Dual-mode-partially parallel | D62: Bivalent-gedeeltelijk parallel | E62: Bivalent -parallèle partiel | F62: Osittainen rinnakkaiskäyttö
A63: Standard Sonde (2 °C) | B63: Standard Sonde (2 °C) | C63: Default probes (2 °C) | D63: Standaard sonde (2 ° C) | E63: Sonde standard (2 °C) | F63: Oletusputket (2 °C)
A64: Standard Kollektor (0 °C) | B64: Standard Kollektor (0 °C) | C64: Default collector (0 °C) | D64: Standaard collector (0 ° C) | E64: Collecteur standard (0 °C) | F64: Oletuskeräin (0 °C)
A65: Standardwert (10 °C) | B65: Standardwert (10 °C) | C65: Default value (10 °C) | D65: Standaard waarde (10 ° C) | E65: valeur par défaut (10 °C) | F65: Oletusarvo (10 °C)
A66: Angabe wird nicht benötigt | B66: Angabe wird nicht benötigt | C66: Not required | D66: Specificatie is niet vereist | E66: Spécification pas nécessaire | F66: Ei vaadittu
A67: Standard VDI 4650 | B67: Standard VDI 4650 | C67: Default VDI 4650 | D67: Standaard VDI 4650 | E67: Norme VDI 4650 | F67: Oletettu VDI 4650
A68: Eingabe [Watt] | B68: Eingabe [Watt] | C68: Input [Watt] | D68: Ingave [Watt] | E68: Entrée [Watts] | F68: Ottoteho [Wattia]
A69: Mit Heizungs-Wärmepumpe | B69: Mit Heizungs-Wärmepumpe | C69: With heat pump for heating | D69: Met warmtepomp voor verwarming | E69: Avec PAC pour chauffage | F69: Lämmitys lämpöpumpulla
A70: Warmwasser-Wärmepumpe | B70: Warmwasser-Wärmepumpe | C70: DHW heat pump | D70: Warm water warmtepomp | E70: Ballon thermodynamique | F70: Käyttövesilämpöpumppu
A71: Sonstige Wärmeerzeuger | B71: Sonstige Wärmeerzeuger | C71: Other heating systems | D71: Overige warmtebronnen | E71: Autres sources de chaleur | F71: Muut lämmitysjärjestelmät
A72: Keine Warmwasserbereitung | B72: Keine Warmwasserbereitung | C72: Without DHW | D72: Geen warm water bereiding | E72: Sans Sanitaire | F72: Ilman käyttövettä
A73: Manuelle Eingabe | B73: Manuelle Eingabe | C73: Manual input | D73: Handmatige invoer | E73: saisie manuelle | F73: Käsisyöttö
A74: Standardwert (18 %) | B74: Standardwert (18 %) | C74: Default value (18 %) | D74: Standaard waarde (18%) | E74: valeur par défaut (18%) | F74: Oletusarvo (18%)
A75: Eingabe in % | B75: Eingabe in % | C75: Manual input in % | D75: Ingave in % | E75: Entrée en% | F75: Käsisyöttö prosentuaalisesti
A76: Rechenwerte | B76: Rechenwerte | C76: Calculation | D76: Calculatie waarde tonen | E76: Montrer les valeurs calculées | F76: Näytä lasketut arvot
A77: Drucken | B77: Drucken | C77: Printout | D77: Resultaten printen | E77: Imprimer les résultats | F77: Tulosta tulokset
A78: Manuelle Eingabe | B78: Manuelle Eingabe | C78: Manual input | D78: Handmatige invoer | E78: Saisie manuelle | F78: Käsisyöttö
A79: Luft-Wasser-Wärmepumpe | B79: Luft-Wasser-Wärmepumpe | C79: Air-water heat pump | D79: Lucht-water warmtepomp | E79: Pompe à chaleur air/eau | F79: Ilma-vesilämpöpumppu
A80: Sole-Wasser-Wärmepumpe | B80: Sole-Wasser-Wärmepumpe | C80: Brine-water heat pump | D80: Brine-water-warmtepomp | E80: Pompe à chaleur eau glycolée/eau | F80: Maalämpöpumppu
A81: Wasser-Wasser-Wärmepumpe | B81: Wasser-Wasser-Wärmepumpe | C81: Water-water heat pump | D81: Water-water warmtepomp | E81: Pompe à chaleur eau/eau | F81: Vesi | Vesilämpöpumppu
A82: Leistungszahl Aufheizung von 15°C auf 50°C | B82: Leistungszahl Aufheizung von 15°C auf 50°C | C82: COP Heating up 15°C to 50°C | D82: Verwarmingscoëfficiënt bij verwarmen van 15 ° C tot 50 ° C. | E82: Coefficient de performance de chauffage de 15 °C à 50 °C | F82: COP (15 °C:n lämmitys 50 °C:een)
A83: Wärmepumpen-Typ | B83: Wärmepumpen-Typ | C83: Type heat pump | D83: Warmtepomp type | E83: Type de pompe à chaleur | F83: Lämpöpumpputyyppi
A84: Zurück zum Hauptfenster | B84: Zurück zum Hauptfenster | C84: Back to main window | D84: Terug naar het hoofdvenster | E84: Retour à la fenêtre principale | F84: Takaisin päävalikkoon
A85: Bivalenzpunkt | B85: Bivalenzpunkt | C85: Dual-mode point | D85: Bivalentiepunt | E85: Point de bivalence | F85: Rinnakkaiskäyttöpiste
A86: Norm-Heizlast Gebäude [KW] | B86: Norm-Heizlast Gebäude [KW] | C86: Heating capacity building [KW] | D86: Norm-warmteverlies gebouw [KW] | E86: charge thermique du bâtiment [kW] | F86: Rakennuksen lämmitystehontarve [kW]
A87: Kennlinie | B87: Kennlinie | C87: Characteristic | D87: Kenmerk | E87: caractéristique | F87: Ominaisuudet
A88: Vorlauf | B88: Vorlauf | C88: Forward flow | D88: Aanvoer | E88: retour | F88: Menovirtaus
A89: Soletemperatur | B89: Soletemperatur | C89: source temperature | D89: Brine temperatuur | E89: température de la source SOL | F89: lähdelämpötila
A90: Grundwassertemperatur | B90: Grundwassertemperatur | C90: source temperature | D90: Grondwater temperatuur | E90: température de la source EAU | F90: lähdelämpötila
A91: Vorlauftemperatur | B91: Vorlauftemperatur | C91: Forward flow | D91: Aanvoertemperatuur. | E91: TEMPÉRATURE DE DÉPART | F91: MENOVIRTAUSLÄMPÖTILA
A92: Raumsolltemperatur in °C | B92: Raumsolltemperatur in °C | C92: Inside temperature [°C] | D92: Gewenste ruimtetemperatuur in ° C | E92: Température ambiante en °C | F92: Sisälämpötila [°C]
A93: Steigung Heizkurve | B93: Steigung Heizkurve | C93: Gradient heating curve | D93: Helling van de stooklijn | E93: Graduation de la courbe de chauffage | F93: Lämpökäyrän kaltevuus
A94: Bivalenzpunkt (Gewählt) | B94: Bivalenzpunkt (Gewählt) | C94: Dual-mode point (chosen) | D94: Bivalentiepunt (gekozen) | E94: Bivalence (choisie) | F94: Rinnakkaiskäyttöpiste (valittu)
A95: Temperaturspreizung (Gewählt) | B95: Temperaturspreizung (Gewählt) | C95: Temperature spread (chosen) | D95: Temperatuurspreiding (gekozen) | E95: La différence de température (choisie) | F95: Lämpötilaero (valittu)
A96: Rücklauftemperatur (Bivalenzpunkt) | B96: Rücklauftemperatur (Bivalenzpunkt) | C96: Return flow temp. (Dual-mode point) | D96: Retourtemperatuur (bivalentiepunt) | E96: Température de retour (bivalence) | F96: Paluuvirtauksen lämpötila (rinn.pisteessä)
A97: Vorlauftemperatur (Bivalenzpunkt) | B97: Vorlauftemperatur (Bivalenzpunkt) | C97: Forward flow temp. (Dual-mode point) | D97: Aanvoertemperatuur (bivalentiepunt) | E97: Température de départ (bivalence) | F97: Menovirtauksen lämpötila (rinn.pisteessä)
A98: Standardwert | B98: Standardwert | C98: Default value | D98: Standaard waarde | E98: Par défaut | F98: Oletusarvo
A99: Standard FB-Heizung (0,3) | B99: Standard FB-Heizung (0,3) | C99: Default underfloor (0,3) | D99: Standaard vloerverwarming (0,3) | E99: Standard Chauffage sol (0,3) | F99: Oletusarvo lattialämmitys (0,3)
A100: Standard Radiatoren (0,8) | B100: Standard Radiatoren (0,8) | C100: Default radiator (0,8) | D100: Standaard Radiatoren (0,8) | E100: Standard Radiateurs (0,8) | F100: Oletusarvo patterilämmitys (0,8)
A101: Heizkurve Vorlauf (Spreizung bei -20°C: | B101: Heizkurve Vorlauf (Spreizung bei -20°C: | C101: Heating curve forward flow (temperature spread at -20°C: | D101: Stooklijn aanvoer (spreiding bij -20 ° C: | E101: Courbe de chauffe départ (écart de température à -20 °C: | F101: Lämmityskäyrä, menovirtaus (lämpötilaero 20 °C:ssa
A102: Heizkurve Rücklauf (Raumtemperatur: | B102: Heizkurve Rücklauf (Raumtemperatur: | C102: Heating curve return flow (Inside temperature: | D102: Stooklijn retour (kamertemperatuur: | E102: courbe de chauffage retour (température ambiante: | F102: Lämmityskäyrä, paluuvesi (sisälämpötila:
A103: Steigung | B103: Steigung | C103: Gradient | D103: Helling | E103: Pente | F103: Kaltevuus
A104: Solepumpe | B104: Solepumpe | C104: Brine circulation pump | D104: Brine circulatiepomp | E104: Pompe de circulation source SOL | F104: Liuospumppu
A105: Volumenstrom (soleseitig) | B105: Volumenstrom (soleseitig) | C105: Volume flow (brine side) | D105: Volumestroom (bronzijdig) | E105: Débit (côté source SOL) | F105: Tilavuusvirta (keruuliuos)
A106: Auswahl Solepumpe | B106: Auswahl Solepumpe | C106: Selection circulation pump | D106: Selectie bronpomp | E106: Sélection de la pompe source SOL | F106: Liuospumpun valinta
A107: Mittlere Leistungsaufnahme | B107: Mittlere Leistungsaufnahme | C107: Average power consumption | D107: Gemiddeld opgenomen vermogen | E107: consommation électrique moyenne | F107: Keskimääräinen sähkön kulutus
A108: Empfehlung Solepumpe | B108: Empfehlung Solepumpe | C108: Recommendation pump | D108: Aanbeveling bronpomp | E108: Recommandation pompe Source SOL | F108: Suositeltava liuospumppu
A109: Werte übernehmen | B109: Werte übernehmen | C109: Accept values | D109: Waarde overnemen | E109: Accepter les valeurs | F109: Hyväksy arvot
A110: integriert | B110: integriert | C110: integrated | D110: geïntegreerd | E110: intégrés | F110: integroitu
A111: Solepumpe nicht einsetzbar | B111: Solepumpe nicht einsetzbar | C111: Brine circulation pump not applicable | D111: Bronpomp niet toepasbaar | E111: Pompe source SOL pas d'application | F111: Liuospumppua ei valittavissa
A112: ca. | B112: ca. | C112: about | D112: Ongeveer | E112: environ | F112: noin
A140: AUSLEGUNG WÄRMEPUMPE. | B140: AUSLEGUNG WÄRMEPUMPE. | C140: LAYOUT HEAT PUMP.
A141: JAHRESHEIZARBEIT | B141: JAHRESHEIZARBEIT | C141: ANNUAL HEATING POWER
A142: LAUFZEITEN | B142: LAUFZEITEN | C142: RUNNING HOURS
A143: HÄUFIGKEIT AUSSENTEMPERATUR | B143: HÄUFIGKEIT AUSSENTEMPERATUR | C143: OUTSIDE TEMPERATURE
A144: NACH HEIZLAST | BIVALENZPUNKT | B144: NACH HEIZLAST | BIVALENZPUNKT | C144: HEAT DEMAND | DUAL MODE POINT
A145: Wärmequelle | B145: Wärmequelle | C145: Heat source
A146: Wärmepumpen-Typ | B146: Wärmepumpen-Typ | C146: Type Heat pump
A147: Standort | Außentemperatur | B147: Standort | Außentemperatur | C147: Location | Outside temperature
A148: * Nicht zur Dimensionierung der Wärmequelle ansetzbar | B148: * Nicht zur Dimensionierung der Wärmequelle ansetzbar | C148: * Not suitable for heat-source dimensioning
A149: Heizgrenze | Gebäudeart | B149: Heizgrenze | Gebäudeart | C149: Heating treshold | Building type
A150: EVU-Sperrzeiten | B150: EVU-Sperrzeiten | C150: Switch off time
A151: Vorlauf-Temperatur | B151: Vorlauf-Temperatur | C151: Forward flow temperature
A152: Betriebsweise | B152: Betriebsweise | C152: Operating mode
A153: Betriebsweise | Bivalenzpunkt | B153: Betriebsweise | Bivalenzpunkt | C153: Operation mode | Dual-mode point
A154: Norm-Heizlast Gebäude [KW] | B154: Norm-Heizlast Gebäude [KW] | C154: Heating capacity [KW]
A155: Jahresheizperiode (h/a) | B155: Jahresheizperiode (h/a) | C155: Heating season [h/a]
A156: Heizarbeit Wärmepumpe* | B156: Heizarbeit Wärmepumpe* | C156: Heating power heat pump*
A157: Bivalenzpunkt Wärmepumpe | B157: Bivalenzpunkt Wärmepumpe | C157: Dual-mode point
A158: Laufzeit Wärmepumpe* | B158: Laufzeit Wärmepumpe* | C158: Running time heat pump*
A159: Maximale Gebäudeheizlast | B159: Maximale Gebäudeheizlast | C159: Max. Heat demand building
A160: Bivalenzpunkt der Wärmepumpe ermitteln | B160: Bivalenzpunkt der Wärmepumpe ermitteln | C160: Determine dual-mode point of heat pump
A161: Maximale Gebäudeheizlast ermitteln | B161: Maximale Gebäudeheizlast ermitteln | C161: Determine max. heat demand building
A162: Jahresheizarbeit der Wärmepumpe ermitteln | B162: Jahresheizarbeit der Wärmepumpe ermitteln | C162: Determine annual heating power heat pump
A163: Laufzeiten der Wärmepumpe ermitteln | B163: Laufzeiten der Wärmepumpe ermitteln | C163: Determine running hours of heat pump
A164: Temperaturverlauf des Standortes anzeigen | B164: Temperaturverlauf des Standortes anzeigen | C164: Show climate data of chosen location
A165: Standort Wärmepumpe | Gebäude festlegen | B165: Standort Wärmepumpe | Gebäude festlegen | C165: Choose location of building/heat pump
A166: Bivalente Anlage (mit Öl- oder Gaskessel) | B166: Bivalente Anlage (mit Öl- oder Gaskessel) | C166: Bivalent system (with oil/gas)
A167: Mehrere Wärmepumpen (Kaskade) | B167: Mehrere Wärmepumpen (Kaskade) | C167: Several heat pumps (cascade)
A168: Außenluft | B168: Außenluft | C168: Air
A169: Erdreich | B169: Erdreich | C169: Brine
A170: Grundwasser | B170: Grundwasser | C170: Water
A171: 12 °C | Neubau EnEV 2009 | B171: 12 °C | Neubau EnEV 2009 | C171: 12 °C | New building
A172: 12 °C | Altbau EnEV 2009 | B172: 12 °C | Altbau EnEV 2009 | C172: 12 °C | Renovated old building
A173: 15 °C | Altbau unsaniert | B173: 15 °C | Altbau unsaniert | C173: 15 °C | Not-renovated building
A174: 10 °C | Passivhaus | B174: 10 °C | Passivhaus | C174: 10 °C | Passive house
A175: 10 °C | KfW-Effizienzhaus 40 | B175: 10 °C | KfW-Effizienzhaus 40 | C175: -
A176: 10 °C | KfW-Effizienzhaus 55 | B176: 10 °C | KfW-Effizienzhaus 55 | C176: -
A177: 10 °C | KfW-Effizienzhaus 70 | B177: 10 °C | KfW-Effizienzhaus 70 | C177: -
A178: 12 °C | KfW-Effizienzhaus 85 | B178: 12 °C | KfW-Effizienzhaus 85 | C178: -
A179: 12 °C | KfW-Effizienzhaus 100 | B179: 12 °C | KfW-Effizienzhaus 100 | C179: -
A180: 12 °C | KfW-Effizienzhaus 115 | B180: 12 °C | KfW-Effizienzhaus 115 | C180: -
A181: 12 °C | Minergie Haus | B181: 12 °C | Minergie Haus | C181: -
A182: 10 °C | Minergie-P Haus | B182: 10 °C | Minergie-P Haus | C182: -
A183: Platzhalter für weitere Haustypen | B183: Platzhalter für weitere Haustypen | C183: -
A184: Platzhalter für weitere Haustypen | B184: Platzhalter für weitere Haustypen | C184: -
A185: Platzhalter für weitere Haustypen | B185: Platzhalter für weitere Haustypen | C185: -
A186: Platzhalter für weitere Haustypen | B186: Platzhalter für weitere Haustypen | C186: -
A187: Platzhalter für weitere Haustypen | B187: Platzhalter für weitere Haustypen | C187: -
A188: Platzhalter für weitere Haustypen | B188: Platzhalter für weitere Haustypen | C188: -
A189: Platzhalter für weitere Haustypen | B189: Platzhalter für weitere Haustypen | C189: -
A190: Platzhalter für weitere Haustypen | B190: Platzhalter für weitere Haustypen | C190: -
A191: Platzhalter für weitere Haustypen | B191: Platzhalter für weitere Haustypen | C191: -
A192: Platzhalter für weitere Haustypen | B192: Platzhalter für weitere Haustypen | C192: -
A193: Platzhalter für weitere Haustypen | B193: Platzhalter für weitere Haustypen | C193: -
A194: Platzhalter für weitere Haustypen | B194: Platzhalter für weitere Haustypen | C194: -
A195: Platzhalter für weitere Haustypen | B195: Platzhalter für weitere Haustypen | C195: -
A196: Keine Sperrzeiten | B196: Keine Sperrzeiten | C196: No switch off times
A197: 1 x 1 h/Tag | B197: 1 x 1 h/Tag | C197: 1 x 1 h/day
A198: 1 x 2 h/Tag | B198: 1 x 2 h/Tag | C198: 1 x 2 h/day
A199: 2 x 2 h/Tag | B199: 2 x 2 h/Tag | C199: 2 x 2 h/day
A200: 3 x 1 h/Tag | B200: 3 x 1 h/Tag | C200: 3 x 1 h/day
A201: 3 x 2 h/Tag | B201: 3 x 2 h/Tag | C201: 3 x 2 h/day
A202: Platzhalter für weitere Sperrzeiten | B202: Platzhalter für weitere Sperrzeiten | C202: -
A203: Platzhalter für weitere Sperrzeiten | B203: Platzhalter für weitere Sperrzeiten | C203: -
A204: Platzhalter für weitere Sperrzeiten | B204: Platzhalter für weitere Sperrzeiten | C204: -
A205: Platzhalter für weitere Sperrzeiten | B205: Platzhalter für weitere Sperrzeiten | C205: -
A206: Platzhalter für weitere Sperrzeiten | B206: Platzhalter für weitere Sperrzeiten | C206: -
A207: Platzhalter für weitere Sperrzeiten | B207: Platzhalter für weitere Sperrzeiten | C207: -
A208: Platzhalter für weitere Sperrzeiten | B208: Platzhalter für weitere Sperrzeiten | C208: -
A209: Platzhalter für weitere Sperrzeiten | B209: Platzhalter für weitere Sperrzeiten | C209: -
A210: Platzhalter für weitere Sperrzeiten | B210: Platzhalter für weitere Sperrzeiten | C210: -
A211: Platzhalter für weitere Sperrzeiten | B211: Platzhalter für weitere Sperrzeiten | C211: -
A212: Platzhalter für weitere Sperrzeiten | B212: Platzhalter für weitere Sperrzeiten | C212: -
A213: Platzhalter für weitere Sperrzeiten | B213: Platzhalter für weitere Sperrzeiten | C213: -
A214: Platzhalter für weitere Sperrzeiten | B214: Platzhalter für weitere Sperrzeiten | C214: -
A215: Monovalent | B215: Monovalent | C215: Monovalent
A216: Monoenergetisch | B216: Monoenergetisch | C216: Monoenergetic
A217: Bivalent-Parallel | B217: Bivalent-Parallel | C217: Bivalent-parallel
A218: Deutschland | B218: Deutschland | C218: Germany
A219: Österreich | B219: Österreich | C219: Austria
A220: Schweiz | B220: Schweiz | C220: Switzerland
A221: Großbritannien | B221: Großbritannien | C221: Great Britain
A222: Finnland | B222: Finnland | C222: Finland
A223: Europa | B223: Europa | C223: Europe
A224: Manuelle Eingabe Norm-Außentemperatur | B224: Manuelle Eingabe Norm-Außentemperatur | C224: Manual input design temperature
A225: Für einen wirtschaftlichen Betrieb sollte ein Bivalenzpunkt zwischen -3°C und -7°C gewählt werden. | B225: Für einen wirtschaftlichen Betrieb sollte ein Bivalenzpunkt zwischen -3°C und -7°C gewählt werden. | C225: For economical reasons the dual-mode point should be between -3°C and -7°C.
A226: Für einen wirtschaftlichen Betrieb sollte die Sole-Wasser-Wärmepumpe monovalent betrieben werden. | B226: Für einen wirtschaftlichen Betrieb sollte die Sole-Wasser-Wärmepumpe monovalent betrieben werden. | C226: For economical reasons brine/water heat pumps should run in monovalent mode.
A227: Für einen wirtschaftlichen Betrieb sollte die Wasser-Wasser-Wärmepumpe monovalent betrieben werden. | B227: Für einen wirtschaftlichen Betrieb sollte die Wasser-Wasser-Wärmepumpe monovalent betrieben werden. | C227: For economical reasons water/water heat pumps should run in monovalent mode.
A228: KW Elektrozusatzheizung | B228: KW Elektrozusatzheizung | C228: KW electric heating support
... 66 more rows
